Workbook

Sheet AI Steps (hidden)
A2: AI Calculations/Steps -> | B2: Base Script | C2: You are an AI monte carlo risk register model builder built into EXCEL. Answer only in the specified format so that it can be parsed. | G2: AI Creativity | H2: Enter a value between 0 and 1 that represents how random the responses should be. Lower values mean more precise and predictable text generation.
B3: Inputs | C3: ="The user has inputted\n{"&_xlfn.TEXTJOIN(",\n",1,Table1[Category]&" : "&Table1[Input])&"}." -> The user has inputted\n{Organization Profile : Generate cybersecurity specific risks to a health insurance company.,\nRisk Scope : }. | G3: 0
B4: Summary | C4: ="You have already generated the following summary of the user inputs and context \n\n"&Summary&"\nThis summary should serve as the foundation for your responses.\n" -> You have already generated the following summary of the user inputs and context \n\n{Quantitative Specifications: - Annual Revenue: $500 million - Current Cybersecurity Budget: $5 million - Estimated Annual Cybersecurity Incidents: 10 - Average Cost per Incident: $1 million - Current Risk Mitigation Level: Moderate - Industry Average Cybersecurity Maturity Level: High - Potential Control Investment Increase: $2 million} The health insurance company faces significant cybersecurity risks, with a quantified non-diversifiable tail risk that could potentially impact its revenue. The likelihood of cybersecurity incidents exceeding 1% of revenue in a single year is approximately 30%, 2% is 20%, 5% is 10%, 10% is 5%, and 20% is 1%. The top five risk categories include data breaches, ransomware attacks, insider threats, third-party vendor risks, and phishing attacks. Data breaches have a 25% likelihood of exceeding 1% of revenue, ransomware attacks 20%, insider threats 15%, third-party vendor risks 10%, and phishing attacks 5%. With targeted control investments, the maximum percent reduction of probability-weighted losses could be achieved as follows: data breaches (40%), ransomware attacks (35%), insider threats (30%), third-party vendor risks (25%), and phishing attacks (20%). These estimates suggest that strategic investments in cybersecurity controls, such as advanced threat detection systems, employee training programs, and enhanced vendor management protocols, could significantly mitigate potential losses.\nThis summary should serve as the foundation for your responses.\n | D4: =AI_WITH_FALLBACK(Base_Script&UserInputs&"\nBased on user inputs and feedback, generate a high level realistic summary of the organization's quantified non-diversifiable tail risk within the context specified"&", including the likelihood of exceeding 1%, 2%, 5%, 10%, or 20% of revenue in a single year. Include similar estimates broken down by top 5 risk categories."& "Include estimates regarding the maximum percent reduction of probability weighted losses within each category that could be realistically achieved with control investments that are not likely to be in place already given the inputs. Return as paragraph."&"\nStart with a quick list of explicit quantitative specifications that can be used to anchor estimates. If user didn't provide quantitative details, generate unified hypothetical."&" Hypothetical should be both unified and realistic. You should aim for a level of realism such that there is minimal likelihood of harm if the user blindly takes your generation as fact",Temp,4096,model_name) -> {Quantitative Specifications: - Annual Revenue: $500 million - Current Cybersecurity Budget: $5 million - Estimated Annual Cybersecurity Incidents: 10 - Average Cost per Incident: $1 million - Current Risk Mitigation Level: Moderate - Industry Average Cybersecurity Maturity Level: High - Potential Control Investment Increase: $2 million} The health insurance company faces significant cybersecurity risks, with a quantified non-diversifiable tail risk that could potentially impact its revenue. The likelihood of cybersecurity incidents exceeding 1% of revenue in a single year is approximately 30%, 2% is 20%, 5% is 10%, 10% is 5%, and 20% is 1%. The top five risk categories include data breaches, ransomware attacks, insider threats, third-party vendor risks, and phishing attacks. Data breaches have a 25% likelihood of exceeding 1% of revenue, ransomware attacks 20%, insider threats 15%, third-party vendor risks 10%, and phishing attacks 5%. With targeted control investments, the maximum percent reduction of probability-weighted losses could be achieved as follows: data breaches (40%), ransomware attacks (35%), insider threats (30%), third-party vendor risks (25%), and phishing attacks (20%). These estimates suggest that strategic investments in cybersecurity controls, such as advanced threat detection systems, employee training programs, and enhanced vendor management protocols, could significantly mitigate potential losses.
B5: =AI_WITH_FALLBACK(Base_Script&Summary_Input&"\nBased on these inputs return just a ::: delimited column of EXACTLY "&Max_Risks&" realistic tail risk event descriptions that are specific to inputs, non diversifiable (i.e. rare and impactful), unique and mutually exclusive, unambiguous and precise in definition and scale, informative, and self-containted. "&"\nRisk events must be ordered and grouped based on risk event category. Do not include any indexing. Entries must be in *[a-Z]* form with ::: between each entry. Do not directly include probability or monetary impact. Do not start with :::.",Temp,4096,model_name) -> Data breach resulting in unauthorized access to 1 million patient records ::: Ransomware attack causing a week-long shutdown of critical systems ::: Insider threat leading to the theft of proprietary algorithms ::: Third-party vendor data leak exposing sensitive client information ::: Phishing attack compromising executive email accounts ::: Data breach involving the loss of encrypted financial data ::: Ransomware attack demanding cryptocurrency payment to restore operations ::: Insider threat facilitating unauthorized financial transactions ::: Third-party vendor system failure disrupting service delivery ::: Phishing attack resulting in fraudulent wire transfers | E5: =IF(LEN(TRIM(Feedback_on_Risk_Names))>0, AI_WITH_FALLBACK(Base_Script&Summary_Input&"\nBased on these inputs return just a ::: delimited column of 1 to "&Max_Risks&" realistic tail risk event descriptions that are specific to inputs, non diversifiable (i.e. rare and impactful), unique and mutually exclusive, unambiguous and precise in definition and scale, informative, and self-containted. "&"\nRisk events must be ordered and grouped based on risk event category. Do not include any indexing. Entries must be in *[a-Z]* form with ::: between each entry. Do not directly include probability or monetary impact. Do not start with :::."&"\nPrevious Generation to Fix: \n"&AI_Description_Output&"\nFeedback from User: \n"&Feedback_on_Risk_Names,Temp,4096,model_name),AI_Description_Output) -> Data breach resulting in unauthorized access to 1 million patient records ::: Ransomware attack causing a week-long shutdown of critical systems ::: Insider threat leading to the theft of proprietary algorithms ::: Third-party vendor data leak exposing sensitive client information ::: Phishing attack compromising executive email accounts ::: Data breach involving the loss of encrypted financial data ::: Ransomware attack demanding cryptocurrency payment to restore operations ::: Insider threat facilitating unauthorized financial transactions ::: Third-party vendor system failure disrupting service delivery ::: Phishing attack resulting in fraudulent wire transfers
B6: Risk Name Input | C6: ="You have already generated the following tail risk event names\n{"&_xlfn.TEXTJOIN(",\n",1,Risk_Names)&"}.\n" -> You have already generated the following tail risk event names\n{data breach involving unauthorized access to sensitive customer information leading to regulatory fines and reputational damage,\nRansomware attack causing a week-long shutdown of critical systems,\nInsider threat leading to the theft of proprietary algorithms,\nThird-party vendor data leak exposing sensitive client information,\nPhishing attack compromising executive email accounts,\nData breach involving the loss of encrypted financial data,\nRansomware attack demanding cryptocurrency payment to restore operations,\nInsider threat facilitating unauthorized financial transactions,\nThird-party vendor system failure disrupting service delivery,\nPhishing attack resulting in fraudulent wire transfers}.\n
B7: =AI_WITH_FALLBACK(Base_Script&Summary_Input&Risk_Name_Text&"Based on these names, return just a ::: delimited column of broader risk categories for each of these "&SUMPRODUCT(1*(LEN(Risk_Names)>0))&" non-diversifiable tail risk events pre-ordered by similarly. Categories must be specific to inputs, precise, unambiguous, and informative for both the USER and your future generation tasks."&" Do not include risk name or index. Delimit with :::. Do not start with :::",Temp,4096,model_name) -> Data Breaches:::Ransomware Attacks:::Insider Threats:::Third-Party Vendor Risks:::Phishing Attacks:::Data Breaches:::Ransomware Attacks:::Insider Threats:::Third-Party Vendor Risks:::Phishing Attacks | E7: =IF(LEN(TRIM(Feedback_on_Categories))>0, AI_WITH_FALLBACK(Base_Script&Summary_Input&Risk_Name_Text&"Based on these names, return just a ::: delimited column of broader risk categories for each of these "&SUMPRODUCT(1*(LEN(Risk_Names)>0))&" non-diversifiable tail risk events pre-ordered by similarly. Categories must be specific to inputs, precise, unambiguous, and informative for both the USER and your future generation tasks."&" Do not include risk name or index. Delimit with :::. Do not start with :::"&"\nPrevious Generation to Fix: \n"&AI_Risk_Tags&"\nFeedback from User: \n"&Feedback_on_Categories,Temp,4096,model_name),AI_Risk_Tags) -> Data Breaches:::Ransomware Attacks:::Insider Threats:::Third-Party Vendor Risks:::Phishing Attacks:::Data Breaches:::Ransomware Attacks:::Insider Threats:::Third-Party Vendor Risks:::Phishing Attacks
B8: Risk Name and Tag Inputs | C8: ="You have already generated the following risk names and tags\n{"&_xlfn.TEXTJOIN(",\n",1,Risk_Names&" : "&Risk_Tags)&"}\n." -> You have already generated the following risk names and tags\n{data breach involving unauthorized access to sensitive customer information leading to regulatory fines and reputational damage : Data Breach Risk,\nRansomware attack causing a week-long shutdown of critical systems : Ransomware Attacks,\nInsider threat leading to the theft of proprietary algorithms : Insider Threats,\nThird-party vendor data leak exposing sensitive client information : Third-Party Vendor Risks,\nPhishing attack compromising executive email accounts : Phishing Attacks,\nData breach involving the loss of encrypted financial data : Data Breaches,\nRansomware attack demanding cryptocurrency payment to restore operations : Ransomware Attacks,\nInsider threat facilitating unauthorized financial transactions : Insider Threats,\nThird-party vendor system failure disrupting service delivery : Third-Party Vendor Risks,\nPhishing attack resulting in fraudulent wire transfers : Phishing Attacks,\n : ,\n : ,\n : ,\n : ,\n : ,\n : ,\n : ,\n : ,\n : ,\n : }\n.
B9: =TRIM(AI_WITH_FALLBACK(Base_Script&Summary_Input&RiskName_Tags&"\nReturn just a ::: delimited column of informed annual probabilities between 0 and 1 for each of these "&SUMPRODUCT(1*(LEN(Risk_Names)>0))&" tail risk events. "&"Risk events (even those categorized together) are assumed to be independent. " &"Do not start with :::. Do not include whitespace or line breaks.",0,4096,model_name)) -> 0.25:::0.20:::0.15:::0.10:::0.05:::0.25:::0.20:::0.15:::0.10:::0.05 | E9: =IF(LEN(TRIM(Feedback_on_Probabilities))>0, TRIM(AI_WITH_FALLBACK(Base_Script&Summary_Input&RiskName_Tags&"\nReturn just a ::: delimited column of informed annual probabilities between 0 and 1 for each of these "& SUMPRODUCT(1*(LEN(Risk_Names)>0))&" tail risk events. "&"Risk events (even those categorized together) are assumed to be independent. "&"Do not start with :::. Do not include whitespace or line breaks"&"\nPrevious Generation to Fix: \n"&AI_Risk_Probabilities&"\nFeedback from User: \n"&Feedback_on_Probabilities,0,4096,model_name)),AI_Risk_Probabilities) -> 0.25:::0.20:::0.15:::0.10:::0.05:::0.25:::0.20:::0.15:::0.10:::0.05
B10: Risk Name Tag P | C10: ="You have already generated the following risks\n{"&_xlfn.TEXTJOIN(",\n",1,"{Name:"&Risk_Names&",Tag:"&Risk_Tags&",AnnualProbability:"&Risk_Probabilities&"}")&"}.\n" -> You have already generated the following risks\n{{Name:data breach involving unauthorized access to sensitive customer information leading to regulatory fines and reputational damage,Tag:Data Breach Risk,AnnualProbability:0.15},\n{Name:Ransomware attack causing a week-long shutdown of critical systems,Tag:Ransomware Attacks,AnnualProbability:0.2},\n{Name:Insider threat leading to the theft of proprietary algorithms,Tag:Insider Threats,AnnualProbability:0.15},\n{Name:Third-party vendor data leak exposing sensitive client information,Tag:Third-Party Vendor Risks,AnnualProbability:0.1},\n{Name:Phishing attack compromising executive email accounts,Tag:Phishing Attacks,AnnualProbability:0.05},\n{Name:Data breach involving the loss of encrypted financial data,Tag:Data Breaches,AnnualProbability:0.25},\n{Name:Ransomware attack demanding cryptocurrency payment to restore operations,Tag:Ransomware Attacks,AnnualProbability:0.2},\n{Name:Insider threat facilitating unauthorized financial transactions,Tag:Insider Threats,AnnualProbability:0.15},\n{Name:Third-party vendor system failure disrupting service delivery,Tag:Third-Party Vendor Risks,AnnualProbability:0.1},\n{Name:Phishing attack resulting in fraudulent wire transfers,Tag:Phishing Attacks,AnnualProbability:0.05},\n{Name:,Tag:,AnnualProbability:},\n{Name:,Tag:,AnnualProbability:},\n{Name:,Tag:,AnnualProbability:},\n{Name:,Tag:,AnnualProbability:},\n{Name:,Tag:,AnnualProbability:},\n{Name:,Tag:,AnnualProbability:},\n{Name:,Tag:,AnnualProbability:},\n{Name:,Tag:,AnnualProbability:},\n{Name:,Tag:,AnnualProbability:},\n{Name:,Tag:,AnnualProbability:}}.\n
B11: Risk UB LB Query | C11: ="Return just an unquoted table of informed LB (p5) and UB (p95) for the potential lognormal annual impact for each of these "&SUMPRODUCT(1*(LEN(Risk_Names)>0))&" non-diversifiable risks given occurrence. Each entry must be exactly: Risk#|LB:$*[0-9]*[T,B,M,K]|UB:$*[0-9]*[T,B,M,K] with ::: between each entry. The size of impacts must align with Organization Size and Type and Risk Definitions" -> Return just an unquoted table of informed LB (p5) and UB (p95) for the potential lognormal annual impact for each of these 10 non-diversifiable risks given occurrence. Each entry must be exactly: Risk#|LB:$*[0-9]*[T,B,M,K]|UB:$*[0-9]*[T,B,M,K] with ::: between each entry. The size of impacts must align with Organization Size and Type and Risk Definitions
B12: =AI_WITH_FALLBACK(Base_Script&Summary_Input&Risk_Name_Tag_P&Risk_UB_LB_Query,Temp,4096,model_name) -> Risk1|LB:$500K|UB:$5M:::Risk2|LB:$1M|UB:$10M:::Risk3|LB:$750K|UB:$7.5M:::Risk4|LB:$500K|UB:$5M:::Risk5|LB:$250K|UB:$2.5M:::Risk6|LB:$1M|UB:$10M:::Risk7|LB:$1M|UB:$10M:::Risk8|LB:$750K|UB:$7.5M:::Risk9|LB:$500K|UB:$5M:::Risk10|LB:$250K|UB:$2.5M | E12: =IF(LEN(TRIM(Feedback_on_Impact))>0,AI_WITH_FALLBACK(Base_Script&Summary_Input&Risk_Name_Tag_P&Risk_UB_LB_Query&"\nPrevious Generation to Fix: \n"&AI_p5_p95&"\nFeedback from User: \n"&Feedback_on_Impact,Temp,4096,model_name),AI_p5_p95) -> Risk1|LB:$500K|UB:$5M:::Risk2|LB:$1M|UB:$10M:::Risk3|LB:$750K|UB:$7.5M:::Risk4|LB:$500K|UB:$5M:::Risk5|LB:$250K|UB:$2.5M:::Risk6|LB:$1M|UB:$10M:::Risk7|LB:$1M|UB:$10M:::Risk8|LB:$750K|UB:$7.5M:::Risk9|LB:$500K|UB:$5M:::Risk10|LB:$250K|UB:$2.5M
B13: =_xlfn.LET( _xlpm.stripped, SUBSTITUTE(SUBSTITUTE(SUBSTITUTE(SUBSTITUTE(AI_IMPACT_CORRECTED," ",""),CHAR(10),""),CHAR(13),""),CHAR(9),""), _xlpm.entries, _xlfn.TEXTSPLIT(_xlpm.stripped,,":::"), _xlpm.toValue, _xlfn.LAMBDA(_xlpm.txt, _xlfn.LET( _xlpm.u, RIGHT(_xlpm.txt,1), _xlpm.mult, _xlfn.SWITCH(_xlpm.u,"K",1000,"M",1000000,"B",1000000000,"T",1000000000000,1), _xlpm.num, VALUE(LEFT(_xlpm.txt,LEN(_xlpm.txt)-1)), _xlpm.num*_xlpm.mult )), _xlpm.lbs, _xlfn.MAP(_xlpm.entries, _xlfn.LAMBDA(_xlpm.e, _xlpm.toValue(_xlfn.TEXTBEFORE(_xlfn.TEXTAFTER(_xlpm.e,"LB:$"),"|")))), _xlpm.ubs, _xlfn.MAP(_xlpm.entries, _xlfn.LAMBDA(_xlpm.e, _xlpm.toValue(_xlfn.TEXTAFTER(_xlpm.e,"UB:$")))), _xlfn.HSTACK(_xlpm.lbs, _xlpm.ubs) ) -> 500000 | C13: 5000000
B14: 1000000 | C14: 10000000
B15: 750000 | C15: 7500000
B16: 500000 | C16: 5000000
B17: 250000 | C17: 2500000
B18: 1000000 | C18: 10000000
B19: 1000000 | C19: 10000000
B20: 750000 | C20: 7500000
B21: 500000 | C21: 5000000
B22: 250000 | C22: 2500000
B33: Full Risk Definition | C33: ="You have already generated the following risks\n{"&_xlfn.TEXTJOIN(",\n",1,"{Name:"&Risk_Names&",Tag:"&Risk_Tags&",AnnualProbability:"&Risk_Probabilities&",Potential Annual Impact p5:"&Risk_p5&",Potential Annual Impact p95:"&Risk_P95&"}")&"}.\n" -> You have already generated the following risks\n{{Name:data breach involving unauthorized access to sensitive customer information leading to regulatory fines and reputational damage,Tag:Data Breach Risk,AnnualProbability:0.15,Potential Annual Impact p5:7500000,Potential Annual Impact p95:15000000},\n{Name:Ransomware attack causing a week-long shutdown of critical systems,Tag:Ransomware Attacks,AnnualProbability:0.2,Potential Annual Impact p5:1000000,Potential Annual Impact p95:10000000},\n{Name:Insider threat leading to the theft of proprietary algorithms,Tag:Insider Threats,AnnualProbability:0.15,Potential Annual Impact p5:750000,Potential Annual Impact p95:7500000},\n{Name:Third-party vendor data leak exposing sensitive client information,Tag:Third-Party Vendor Risks,AnnualProbability:0.1,Potential Annual Impact p5:500000,Potential Annual Impact p95:5000000},\n{Name:Phishing attack compromising executive email accounts,Tag:Phishing Attacks,AnnualProbability:0.05,Potential Annual Impact p5:250000,Potential Annual Impact p95:2500000},\n{Name:Data breach involving the loss of encrypted financial data,Tag:Data Breaches,AnnualProbability:0.25,Potential Annual Impact p5:1000000,Potential Annual Impact p95:10000000},\n{Name:Ransomware attack demanding cryptocurrency payment to restore operations,Tag:Ransomware Attacks,AnnualProbability:0.2,Potential Annual Impact p5:1000000,Potential Annual Impact p95:10000000},\n{Name:Insider threat facilitating unauthorized financial transactions,Tag:Insider Threats,AnnualProbability:0.15,Potential Annual Impact p5:750000,Potential Annual Impact p95:7500000},\n{Name:Third-party vendor system failure disrupting service delivery,Tag:Third-Party Vendor Risks,AnnualProbability:0.1,Potential Annual Impact p5:500000,Potential Annual Impact p95:5000000},\n{Name:Phishing attack resulting in fraudulent wire transfers,Tag:Phishing Attacks,AnnualProbability:0.05,Potential Annual Impact p5:250000,Potential Annual Impact p95:2500000},\n{Name:,Tag:,AnnualProbability:,Potential Annual Impact p5:,Potential Annual Impact p95:},\n{Name:,Tag:,AnnualProbability:,Potential Annual Impact p5:,Potential Annual Impact p95:},\n{Name:,Tag:,AnnualProbability:,Potential Annual Impact p5:,Potential Annual Impact p95:},\n{Name:,Tag:,AnnualProbability:,Potential Annual Impact p5:,Potential Annual Impact p95:},\n{Name:,Tag:,AnnualProbability:,Potential Annual Impact p5:,Potential Annual Impact p95:},\n{Name:,Tag:,AnnualProbability:,Potential Annual Impact p5:,Potential Annual Impact p95:},\n{Name:,Tag:,AnnualProbability:,Potential Annual Impact p5:,Potential Annual Impact p95:},\n{Name:,Tag:,AnnualProbability:,Potential Annual Impact p5:,Potential Annual Impact p95:},\n{Name:,Tag:,AnnualProbability:,Potential Annual Impact p5:,Potential Annual Impact p95:},\n{Name:,Tag:,AnnualProbability:,Potential Annual Impact p5:,Potential Annual Impact p95:}}.\n
B34: Control Query | C34: ="Return just an unquoted table of specific, actionable, unambiguous probability or impact reducing controls for each of these "&SUMPRODUCT(1*(LEN(Risk_Names)>0))&" non-diversifiable tail risk events. Each entry must be exactly: Risk[0-9]*|ControlDescription:*[A-z ]* with ::: between each row and | between each column." &"Do not include broad controls that are almost guaranteed to be in place already."&"\n Controls should be unique at the risk event level (no repeated control program names). "&"There should be exactly one control for each of the "&SUMPRODUCT(1*(LEN(Risk_Names)>0))&" Risk Events." -> Return just an unquoted table of specific, actionable, unambiguous probability or impact reducing controls for each of these 10 non-diversifiable tail risk events. Each entry must be exactly: Risk[0-9]*|ControlDescription:*[A-z ]* with ::: between each row and | between each column.Do not include broad controls that are almost guaranteed to be in place already.\n Controls should be unique at the risk event level (no repeated control program names). There should be exactly one control for each of the 10 Risk Events. | E34: ="Return just an unquoted table of annual costs for these specific, unambiguous controls on each of these "&SUMPRODUCT(1*(LEN(Risk_Names)>0))&" non-diversifiable tail risk events. Each entry must be exactly: Risk[0-9]*|ControlName:*[A-z ]*|ControlCost:$*[0-9]*[T,B,M,K]| with ::: between each row and | between each column."&" The cost must align with Risks, Likelihood, & Severity." -> Return just an unquoted table of annual costs for these specific, unambiguous controls on each of these 10 non-diversifiable tail risk events. Each entry must be exactly: Risk[0-9]*|ControlName:*[A-z ]*|ControlCost:$*[0-9]*[T,B,M,K]| with ::: between each row and | between each column. The cost must align with Risks, Likelihood, & Severity. | F34: ="Return just an unquoted table of risk reduction (combination of probability and impact reduction) percentages for these specific, unambiguous controls on each of these "&SUMPRODUCT(1*(LEN(Risk_Names)>0))&" non-diversifiable tail risk events. Each entry must be exactly: Risk[0-9]*|ControlName:*[A-z ]*|ControlCost:$*[0-9]*[T,B,M,K]|ControlEffectiveness:0.[0-9]* with ::: between each row and | between each column."&" The effectiveness must align with Risks, Likelihood, & Severity and Control Costs." -> Return just an unquoted table of risk reduction (combination of probability and impact reduction) percentages for these specific, unambiguous controls on each of these 10 non-diversifiable tail risk events. Each entry must be exactly: Risk[0-9]*|ControlName:*[A-z ]*|ControlCost:$*[0-9]*[T,B,M,K]|ControlEffectiveness:0.[0-9]* with ::: between each row and | between each column. The effectiveness must align with Risks, Likelihood, & Severity and Control Costs.
B35: =AI_WITH_FALLBACK(Base_Script&Summary_Input&Full_risk_definition&Control_Query,Temp,4096,model_name) -> Risk0|ControlDescription:Implement advanced data encryption and access monitoring systems:::Risk1|ControlDescription:Deploy a robust incident response plan with regular ransomware attack simulations:::Risk2|ControlDescription:Establish a comprehensive insider threat detection program with behavioral analytics:::Risk3|ControlDescription:Conduct thorough security audits and compliance checks for all third-party vendors:::Risk4|ControlDescription:Implement multi-factor authentication and regular phishing simulation training for executives:::Risk5|ControlDescription:Enhance encryption protocols and conduct regular penetration testing:::Risk6|ControlDescription:Develop a cryptocurrency payment response strategy and backup data recovery plan:::Risk7|ControlDescription:Introduce mandatory financial transaction monitoring and anomaly detection systems:::Risk8|ControlDescription:Create a vendor risk management framework with contingency planning:::Risk9|ControlDescription:Establish a fraud detection system with real-time transaction monitoring | E35: =AI_WITH_FALLBACK(Base_Script&Summary_Input&Full_risk_definition&"\nGenerated list of controls: \n"&_xlfn.TEXTJOIN(":::",TRUE,'Risk Estimates'!A12:A32&"|"&'Risk Estimates'!G12:G32)&"\n"&ControlQuery_2,Temp,4096,model_name) -> Risk1|Control Name:Implement multi-factor authentication for sensitive data access|Control Cost:$500K:::Risk2|Control Name:Deploy a robust incident response plan with regular ransomware attack simulations|Control Cost:$750K:::Risk3|Control Name:Establish a comprehensive insider threat detection program with behavioral analytics|Control Cost:$600K:::Risk4|Control Name:Conduct thorough security audits and compliance checks for all third-party vendors|Control Cost:$400K:::Risk5|Control Name:Implement multi-factor authentication and regular phishing simulation training for executives|Control Cost:$300K:::Risk6|Control Name:Enhance encryption protocols and conduct regular penetration testing|Control Cost:$550K:::Risk7|Control Name:Develop a cryptocurrency payment response strategy and backup data recovery plan|Control Cost:$700K:::Risk8|Control Name:Introduce mandatory financial transaction monitoring and anomaly detection systems|Control Cost:$650K:::Risk9|Control Name:Create a vendor risk management framework with contingency planning|Control Cost:$450K:::Risk10|Control Name:Establish a fraud detection system with real-time transaction monitoring|Control Cost:$350K | F35: =AI_WITH_FALLBACK(Base_Script&Summary_Input&Full_risk_definition&"\nGenerated list of controls: \n"&_xlfn.TEXTJOIN(":::",TRUE,'Risk Estimates'!A12:A32&"|"&'Risk Estimates'!G12:G32&"|")&"\n"&Control_Prompt_3,Temp,4096,model_name) -> Risk1|ControlName:Implement multi-factor authentication for sensitive data access|ControlCost:$500K|ControlEffectiveness:0.30:::Risk2|ControlName:Deploy a robust incident response plan with regular ransomware attack simulations|ControlCost:$750K|ControlEffectiveness:0.25:::Risk3|ControlName:Establish a comprehensive insider threat detection program with behavioral analytics|ControlCost:$600K|ControlEffectiveness:0.20:::Risk4|ControlName:Conduct thorough security audits and compliance checks for all third-party vendors|ControlCost:$400K|ControlEffectiveness:0.15:::Risk5|ControlName:Implement multi-factor authentication and regular phishing simulation training for executives|ControlCost:$300K|ControlEffectiveness:0.10:::Risk6|ControlName:Enhance encryption protocols and conduct regular penetration testing|ControlCost:$500K|ControlEffectiveness:0.35:::Risk7|ControlName:Develop a cryptocurrency payment response strategy and backup data recovery plan|ControlCost:$700K|ControlEffectiveness:0.25:::Risk8|ControlName:Introduce mandatory financial transaction monitoring and anomaly detection systems|ControlCost:$650K|ControlEffectiveness:0.20:::Risk9|ControlName:Create a vendor risk management framework with contingency planning|ControlCost:$450K|ControlEffectiveness:0.15:::Risk10|ControlName:Establish a fraud detection system with real-time transaction monitoring|ControlCost:$350K|ControlEffectiveness:0.10
B36: =IF(LEN(TRIM(Feedback_on_Controls))>0,AI_WITH_FALLBACK(Base_Script&Summary_Input&Full_risk_definition&Control_Query&"\nPrevious Generation to Fix: \n"&AI_CONTROL_NAME_GEN&"\nFeedback from User: \n"&Feedback_on_Controls,Temp,4096,model_name),AI_CONTROL_NAME_GEN) -> Risk0|ControlDescription:Implement advanced data encryption and access monitoring systems:::Risk1|ControlDescription:Deploy a robust incident response plan with regular ransomware attack simulations:::Risk2|ControlDescription:Establish a comprehensive insider threat detection program with behavioral analytics:::Risk3|ControlDescription:Conduct thorough security audits and compliance checks for all third-party vendors:::Risk4|ControlDescription:Implement multi-factor authentication and regular phishing simulation training for executives:::Risk5|ControlDescription:Enhance encryption protocols and conduct regular penetration testing:::Risk6|ControlDescription:Develop a cryptocurrency payment response strategy and backup data recovery plan:::Risk7|ControlDescription:Introduce mandatory financial transaction monitoring and anomaly detection systems:::Risk8|ControlDescription:Create a vendor risk management framework with contingency planning:::Risk9|ControlDescription:Establish a fraud detection system with real-time transaction monitoring | E36: =IF(LEN(TRIM(Feedback_on_Costs))>0,AI_WITH_FALLBACK(Base_Script&Summary_Input&Full_risk_definition&"\nGenerated list of controls: \n"&_xlfn.TEXTJOIN(":::",TRUE,'Risk Estimates'!A12:A32&"|"&'Risk Estimates'!G12:G32)&"\n"&ControlQuery_2&"\nPrevious Generation to Fix: \n"&AI_CONTROL_COST_GEN&"\nFeedback from User: \n"&Feedback_on_Costs,Temp,4096,model_name),AI_CONTROL_COST_GEN) -> Risk1|Control Name:Implement multi-factor authentication for sensitive data access|Control Cost:$500K:::Risk2|Control Name:Deploy a robust incident response plan with regular ransomware attack simulations|Control Cost:$750K:::Risk3|Control Name:Establish a comprehensive insider threat detection program with behavioral analytics|Control Cost:$600K:::Risk4|Control Name:Conduct thorough security audits and compliance checks for all third-party vendors|Control Cost:$400K:::Risk5|Control Name:Implement multi-factor authentication and regular phishing simulation training for executives|Control Cost:$300K:::Risk6|Control Name:Enhance encryption protocols and conduct regular penetration testing|Control Cost:$550K:::Risk7|Control Name:Develop a cryptocurrency payment response strategy and backup data recovery plan|Control Cost:$700K:::Risk8|Control Name:Introduce mandatory financial transaction monitoring and anomaly detection systems|Control Cost:$650K:::Risk9|Control Name:Create a vendor risk management framework with contingency planning|Control Cost:$450K:::Risk10|Control Name:Establish a fraud detection system with real-time transaction monitoring|Control Cost:$350K | F36: =IF(LEN(TRIM(Feedback_on_Effectivenesses))>0,AI_WITH_FALLBACK(Base_Script&Summary_Input&Full_risk_definition&"\nGenerated list of controls: \n"&_xlfn.TEXTJOIN(":::",TRUE,'Risk Estimates'!A12:A32&"|"&'Risk Estimates'!G12:G32&"|")&"\n"&Control_Prompt_3&"\nPrevious Generation to Fix: \n"&AI_CONTROL_EFF_GEN&"\nFeedback from User: \n"&Feedback_on_Effectivenesses,Temp,4096,model_name),AI_CONTROL_EFF_GEN) -> Risk1|ControlName:Implement multi-factor authentication for sensitive data access|ControlCost:$500K|ControlEffectiveness:0.30:::Risk2|ControlName:Deploy a robust incident response plan with regular ransomware attack simulations|ControlCost:$750K|ControlEffectiveness:0.25:::Risk3|ControlName:Establish a comprehensive insider threat detection program with behavioral analytics|ControlCost:$600K|ControlEffectiveness:0.20:::Risk4|ControlName:Conduct thorough security audits and compliance checks for all third-party vendors|ControlCost:$400K|ControlEffectiveness:0.15:::Risk5|ControlName:Implement multi-factor authentication and regular phishing simulation training for executives|ControlCost:$300K|ControlEffectiveness:0.10:::Risk6|ControlName:Enhance encryption protocols and conduct regular penetration testing|ControlCost:$500K|ControlEffectiveness:0.35:::Risk7|ControlName:Develop a cryptocurrency payment response strategy and backup data recovery plan|ControlCost:$700K|ControlEffectiveness:0.25:::Risk8|ControlName:Introduce mandatory financial transaction monitoring and anomaly detection systems|ControlCost:$650K|ControlEffectiveness:0.20:::Risk9|ControlName:Create a vendor risk management framework with contingency planning|ControlCost:$450K|ControlEffectiveness:0.15:::Risk10|ControlName:Establish a fraud detection system with real-time transaction monitoring|ControlCost:$350K|ControlEffectiveness:0.10
B37: =_xlfn.LET( _xlpm.txt, SUBSTITUTE(SUBSTITUTE(TRIM(AI_CONTROL_NAME_CORRECT),CHAR(22),""),CHAR(27),""), _xlpm.parts, _xlfn.TEXTSPLIT(_xlpm.txt,"|",":::"), _xlpm.nm, TRIM(INDEX(_xlpm.parts,,1)), _xlpm.cnm, TRIM(INDEX(_xlpm.parts,,2)), _xlpm.cRaw, TRIM(INDEX(_xlpm.parts,,3)), _xlpm.eRaw, TRIM(INDEX(_xlpm.parts,,4)), _xlpm.keep, _xlpm.nm<>"", _xlpm.cnmF, _xlfn.TEXTAFTER(_xlfn._xlws.FILTER(_xlpm.cnm,_xlpm.keep),"ControlDescription:"), _xlpm.nmF, _xlfn._xlws.FILTER(_xlpm.nm,_xlpm.keep), _xlpm.cRawF, _xlfn._xlws.FILTER(_xlpm.cRaw,_xlpm.keep), _xlpm.eRawF, _xlfn._xlws.FILTER(_xlpm.eRaw,_xlpm.keep), _xlpm.cost, _xlfn.MAP(_xlpm.cRawF, _xlfn.LAMBDA(_xlpm.cs, _xlfn.LET(_xlpm.t, _xlfn.TEXTAFTER(_xlpm.cs,"$"), _xlpm.m, _xlfn.SWITCH(RIGHT(_xlpm.t,1), "K",1000,"M",1000000,"B",1000000000,"T",1000000000000,1), VALUE(LEFT(_xlpm.t,LEN(_xlpm.t)-1))*_xlpm.m))), _xlpm.eff, _xlfn.MAP(_xlpm.eRawF, _xlfn.LAMBDA(_xlpm.es, VALUE(_xlfn.TEXTAFTER(_xlpm.es,":")))), _xlfn.HSTACK(_xlpm.nmF,_xlpm.cnmF) ) -> Risk0 | C37: Implement advanced data encryption and access monitoring systems | D37: =_xlfn.LET( _xlpm.txt, SUBSTITUTE(SUBSTITUTE(TRIM(AI_COST_CORRECT),CHAR(22),""),CHAR(27),""), _xlpm.parts, _xlfn.TEXTSPLIT(_xlpm.txt,"|",":::"), _xlpm.nm, TRIM(INDEX(_xlpm.parts,,1)), _xlpm.cnm, TRIM(INDEX(_xlpm.parts,,2)), _xlpm.cRaw, TRIM(INDEX(_xlpm.parts,,3)), _xlpm.eRaw, TRIM(INDEX(_xlpm.parts,,4)), _xlpm.keep, _xlpm.nm<>"", _xlpm.cnmF, _xlfn.TEXTAFTER(_xlfn._xlws.FILTER(_xlpm.cnm,_xlpm.keep),"ControlName:"), _xlpm.nmF, _xlfn._xlws.FILTER(_xlpm.nm,_xlpm.keep), _xlpm.cRawF, _xlfn._xlws.FILTER(_xlpm.cRaw,_xlpm.keep), _xlpm.eRawF, _xlfn._xlws.FILTER(_xlpm.eRaw,_xlpm.keep), _xlpm.cost, _xlfn.MAP(_xlpm.cRawF, _xlfn.LAMBDA(_xlpm.cs, _xlfn.LET(_xlpm.t, _xlfn.TEXTAFTER(_xlpm.cs,"$"), _xlpm.m, _xlfn.SWITCH(RIGHT(_xlpm.t,1), "K",1000,"M",1000000,"B",1000000000,"T",1000000000000,1), VALUE(LEFT(_xlpm.t,LEN(_xlpm.t)-1))*_xlpm.m))), _xlpm.eff, _xlfn.MAP(_xlpm.eRawF, _xlfn.LAMBDA(_xlpm.es, VALUE(_xlfn.TEXTAFTER(_xlpm.es,":")))), _xlfn.HSTACK(_xlpm.cost) ) -> 500000 | E37: =_xlfn.LET( _xlpm.txt, SUBSTITUTE(SUBSTITUTE(TRIM(AI_EFF_CORRECT),CHAR(22),""),CHAR(27),""), _xlpm.parts, _xlfn.TEXTSPLIT(_xlpm.txt,"|",":::"), _xlpm.nm, TRIM(INDEX(_xlpm.parts,,1)), _xlpm.cnm, TRIM(INDEX(_xlpm.parts,,2)), _xlpm.cRaw, TRIM(INDEX(_xlpm.parts,,3)), _xlpm.eRaw, TRIM(INDEX(_xlpm.parts,,4)), _xlpm.keep, _xlpm.nm<>"", _xlpm.cnmF, _xlfn.TEXTAFTER(_xlfn._xlws.FILTER(_xlpm.cnm,_xlpm.keep),"ControlName:"), _xlpm.nmF, _xlfn._xlws.FILTER(_xlpm.nm,_xlpm.keep), _xlpm.cRawF, _xlfn._xlws.FILTER(_xlpm.cRaw,_xlpm.keep), _xlpm.eRawF, _xlfn._xlws.FILTER(_xlpm.eRaw,_xlpm.keep), _xlpm.cost, _xlfn.MAP(_xlpm.cRawF, _xlfn.LAMBDA(_xlpm.cs, _xlfn.LET(_xlpm.t, _xlfn.TEXTAFTER(_xlpm.cs,"$"), _xlpm.m, _xlfn.SWITCH(RIGHT(_xlpm.t,1), "K",1000,"M",1000000,"B",1000000000,"T",1000000000000,1), VALUE(LEFT(_xlpm.t,LEN(_xlpm.t)-1))*_xlpm.m))), _xlpm.eff, _xlfn.MAP(_xlpm.eRawF, _xlfn.LAMBDA(_xlpm.es, VALUE(_xlfn.TEXTAFTER(_xlpm.es,":")))), _xlfn.HSTACK(_xlpm.eff) ) -> 0.3
B38: Risk1 | C38: Deploy a robust incident response plan with regular ransomware attack simulations | D38: 750000 | E38: 0.25
B39: Risk2 | C39: Establish a comprehensive insider threat detection program with behavioral analytics | D39: 600000 | E39: 0.2
B40: Risk3 | C40: Conduct thorough security audits and compliance checks for all third-party vendors | D40: 400000 | E40: 0.15
B41: Risk4 | C41: Implement multi-factor authentication and regular phishing simulation training for executives | D41: 300000 | E41: 0.1
B42: Risk5 | C42: Enhance encryption protocols and conduct regular penetration testing | D42: 550000 | E42: 0.35
B43: Risk6 | C43: Develop a cryptocurrency payment response strategy and backup data recovery plan | D43: 700000 | E43: 0.25
B44: Risk7 | C44: Introduce mandatory financial transaction monitoring and anomaly detection systems | D44: 650000 | E44: 0.2
B45: Risk8 | C45: Create a vendor risk management framework with contingency planning | D45: 450000 | E45: 0.15
B46: Risk9 | C46: Establish a fraud detection system with real-time transaction monitoring | D46: 350000 | E46: 0.1

Sheet AI Inputs
A1: AI Enabled Risk Register: One-for-One Substitution Model
D2: Contact HDR to develop custom quantitative methods for your firm. | E2: This risk register demonstrates how Artificial Intelligence, combined with expert judgment, can be translated into fully quantitative risk analysis. The model converts likelihood and impact estimates into probabilistic models suitable for simulation, enabling risks to be aggregated, compared, and evaluated on a consistent basis. In the yellow cells below, enter your project and risk-related information. The input fields are structured to capture assumptions and key variables, which the AI model will then process to fill in a list of risks and corresponding estimates. A hidden sheet includes the intermediate calculations performed by the AI model. It translates the inputs into structured estimates that are output in the Risk Estimates tab. Important: All AI generated content should be reviewed and confirmed with subject-matter experts before relying on this model for decision-making.
D3: www.hubbardresearch.com
D4: info@hubbardresearch.com
C7: Prerequisites and Set-up Instructions
C8: To use this tool, you need an OpenAI account and available credits. 1. OpenAI API Key: Create an account (https://auth.openai.com/create-account) and get an API key from the API Keys page (https://platform.openai.com/api-keys). 2. Microsoft Excel Version: Ensure that your version of Excel or organizational policies allow for VBA macros. 3. OpenAI API Credits: Make sure you have added credits to your OpenAI account via the Billing page (https://platform.openai.com/account/billing). 4. Enable macros and unblock workbook (requires closing file and unblocking within file properties). 5. Enter Your OpenAI API Key into the input field below. 6. Clear the flag in cell E16 to prevent AI calls while you refine inputs. Enter "1" in E16 to enable AI calls. 7. Clear illustrative inputs on 'AI inputs' sheet and illustrative overrides in 'Risk Estimates' sheet before using.
C11: Category | D11: Potential Considerations | E11: Input | F11: SAMPLE INPUTS
C12: Organization Profile | D12: • Mission or core purpose • Industry / sector • Key activities, products, or services • Size metrics (employee count, annual revenue, and/or market-share figure) | E12: Generate cybersecurity specific risks to a health insurance company. | F12: Generate potential risks for a large infrastructure project in the construction sector, with a $500M budget and 1,200 workers. Consider its mission (deliver transportation improvements), key activities (design, procurement, build), and project context. | G12: Generate potential risks for a regional hospital system in the healthcare sector, with 3,500 employees and $1.2B annual revenue. Consider its mission (provide patient care), key services (emergency, surgery, outpatient), and industry context. | H12: Generate cybersecurity specific risks to an insurance company.
C13: Risk Scope | D13: • One top-level risk category (financial, operational, strategic, compliance, etc.) • Enumerated sub-categories specific to that category (e.g., credit risk, liquidity risk for “financial”) | F13: Include risks such as schedule delays, cost overruns, safety incidents, and supply chain disruptions. | G13: Include risks such as staffing shortages, regulatory changes, IT failures, and patient safety incidents. | H13: Decompose of sources of business interruption that have real financial outcomes for the purpose of measuring the return on control and mitigation investments. Special attention to root cause attribution to isolate targets for controls and mitigations.
C15: # of Risks | D15: Enter a value between 1 and 20 to set how many risks you would like generated. | E15: Type 1 to Send Inputs
C16: 10 | E16: 1
C18: Open AI Key
C21: Model Name
C22: gpt-4o

Sheet Risk Estimates
A1: Risk Register | U1: ← Uncollapse for HDR PRNG | AA1: ← Uncollapse for Residual Loss and ROC
C2: Contact HDR to develop custom quantitative methods for your firm. | D2: This sheet presents the AI-generated risks, the estimates of likelihood and impact for each risk, potential controls, and control effectiveness. These serve as the default values used in the model. You can provide feedback on a given column, and those and all downstream values will be updated. You can manually override the AI estimates in the override fields, ideally based on calibrated expert judgment. The workbook will use your entries instead of the AI defaults. You can also "lock in" the estimates or other content the AI provided before giving feedback to change other aspects of the register. This sheet also calculates simulated losses based on probabilistic modeling and the effect of selected controls. This structure allows users to benefit from AI-generated starting points while retaining full control to refine the estimates and ensure they reflect organizational knowledge. | I2: =GENERATIVEAI("TEST") -> Missing API key.
C3: www.hubbardresearch.com
C4: info@hubbardresearch.com
B5: Trial Slider Bar → | D5: Trial ID: | E5: 42
A6: ↓ Expand for column category details
B7: The "Risk Name" should be a short, unique identifier for the risk being considered. | C7: Enter the "Risk Classification" that best matches. If the category needs explanation, please use the "Notes" column. | D7: Estimate the likelihood of the event occurring at least once per year. | E7: Estimate the total impact of the event, assuming it occurs, with a 90% confidence interval. That is, estimate a lower bound and upper bound, such that you believe there is a 90% chance the actual impact will be between the bounds. Note that the lower bound must be greater than 0. | G7: The "Control Name" should be a short, unique identifier for a control that could mitigate the risk in the row. | H7: For the control being applied to the risk, provide an estimate of the cost of implementing the control. | I7: Estimate the effectiveness of the controls being applied as a percent reduction in the likelihood of the event occurring. For example, if the risk has a 10% chance per year of occurring and a control is applied with 25% effectiveness, the mitigated likelihood of the event occurring would be 7.5%. | K7: The "Risk Name" should be a short, unique identifier for the risk being considered. | L7: Enter the "Risk Classification" that best matches. If the category needs explanation please use the "Notes" column. | M7: Estimate the likelihood of the event occurring at least one time in a year. | N7: Estimate the total impact of the event, given that it occurred, with a 90% confidence interval. That is, estimate a lower bound and upper bound such that you believe there is a 90% chance the actual impact will be between the bounds. Note that the lower bound must be greater than 0. | P7: The "Control Name" should be a short, unique identifier for a control that could mitigate the risk in the row. | Q7: For the control being applied to the risk, provide an estimate of the cost of implementing the control. | R7: Estimate the effectiveness of the controls being applied as a percent reduction in the likelihood of the event occurring. For example, if the risk has a 10% chance per year of occurring and a control is applied with 25% effectiveness, the mitigated likelihood of the event occurring would be 7.5%. | S7: Record any relevant notes about the risk, such as assumptions made when estimating likelihood and impact, or the controls, such as what controls are included in the total cost. | T7: The expected value, or probability-weighted average, of the loss due to a risk. A lognormal distribution is assumed for impact. | U7: Pseudo-random numbers between 0 and 1 are generated for each variable using a unique variable ID. These numbers are then used in other formulas to generate values for each scenario. | W7: A random draw against the likelihood of the event determines if the event occurs. If it does occur, total losses are randomly drawn from the impact ranges. If the event does not occur, there is $0 simulated loss. | X7: The expected value, or probability-weighted average, of the loss after applying controls. A lognormal distribution is assumed for impact. | Y7: The loss simulated in this trial, if there is one, after the implementation of the control. | Z7: Return on control is computed by comparing the monetized risk reduction (change in expected loss) to the total cost of controls.
B8: AI GENERATED INPUT VALUES | J8: User Overrides → | K8: USER OVERRIDE FOR AI GENERATED INPUT VALUES | S8: OUTPUT VALUES
B9: Feedback on Risk Names | C9: Feedback on Categories | D9: Feedback on Probabilities | E9: Feedback on Impact | G9: Feedback on Controls | H9: Feedback on Costs | I9: Feedback on Effectivenesses
K10: Once you are satisfied with a row from the AI generated inputs, or if you would like to edit one or more of the inputs based on expertise, use the area below. These values will override the corresponding rows in the AI generated inputs.
E11: 90% Confidence Interval of Impact | N11: 90% Confidence Interval of Impact | U11: 100000 | V11: 100001
A12: Risk ID | B12: Risk Name | C12: Risk Classification | D12: Probability of a Loss Over 1 Year | E12: Lower Bound | F12: Upper Bound | G12: Control Name | H12: Cost of Control | I12: Control Effectiveness | K12: Risk Name | L12: Risk Classification | M12: Probability of a Loss Over 1 Year | N12: Lower Bound | O12: Upper Bound | P12: Control Name | Q12: Cost of Control | R12: Control Effectiveness | S12: Notes | T12: Expected Inherent Loss | U12: Probability Rand | V12: Impact Rand | W12: Simulated Inherent Loss | X12: Expected Residual Loss | Y12: Simulated Residual Loss | Z12: Return on Control
A13: =ROW('Risk Estimates'!$B13)-ROW('Risk Estimates'!$B$12) -> 1 | B13: =TRIM(IF(NOT(ISBLANK(K13)),K13,IFERROR(INDEX(_xlfn.TEXTSPLIT(AI_CORRECTED_RISKS,,":::"),'Risk Estimates'!A13),""))) -> data breach involving unauthorized access to sensitive customer information leading to regulatory fines and reputational damage | C13: =IF(NOT(ISBLANK(L13)),L13,IFERROR(INDEX(_xlfn.TEXTSPLIT(AI_CORRECTED_TAGS,,":::"),'Risk Estimates'!A13),"")) -> Data Breach Risk | D13: =IF(NOT(ISBLANK(M13)),M13,IFERROR(VALUE(INDEX(_xlfn.TEXTSPLIT(AI_PROB_CORRECTED,,":::"),'Risk Estimates'!A13)),"")) -> 0.15 | E13: =IF(NOT(ISBLANK(N13)),N13,IFERROR(INDEX(AI_LB_UB,A13,1),"")) -> 7500000 | F13: =IF(NOT(ISBLANK(O13)),O13,IFERROR(INDEX(AI_LB_UB,A13,2),"")) -> 15000000 | G13: =IF(NOT(ISBLANK(P13)),P13,IFERROR(INDEX(AI_Controls,A13,2),"")) -> Implement multi-factor authentication for sensitive data access | H13: =IF(NOT(ISBLANK(Q13)),Q13,IFERROR(INDEX(_xlfn.ANCHORARRAY('AI Steps'!$D$37),A13,1),"")) -> 50000 | I13: =IF(NOT(ISBLANK(R13)),R13,IFERROR(INDEX(_xlfn.ANCHORARRAY('AI Steps'!$E$37),A13,1),"")) -> 0.4 | K13: data breach involving unauthorized access to sensitive customer information leading to regulatory fines and reputational damage | L13: Data Breach Risk | M13: 0.15 | N13: 7500000 | O13: 15000000 | P13: Implement multi-factor authentication for sensitive data access | Q13: 50000 | R13: 0.4 | S13: adjusted AI generated content | T13: =IFERROR(EXP(((LN('Risk Estimates'!$F13)+LN('Risk Estimates'!$E13))/2)+((LN('Risk Estimates'!$F13)-LN('Risk Estimates'!$E13))/3.28971)^2/2)*'Risk Estimates'!$D13, 0) -> 1626701.279 | U13: =((MOD((MOD(MOD(999999999999989,MOD(TrialID*2499997+U$11*1800451+0*2000371+0*1796777+'Risk Estimates'!$A13*2299603,7450589)*4658+7450581)*383,99991)*7440893+MOD(MOD(999999999999989,MOD(TrialID*2246527+U$11*2399993+0*2100869+0*1918303+'Risk Estimates'!$A13*1624729,7450987)*7580+7560584)*17669,7440893))*1343,4294967296))+0.5)/2^32 -> 0.3748620179 | V13: =((MOD((MOD(MOD(999999999999989,MOD(TrialID*2499997+V$11*1800451+0*2000371+0*1796777+'Risk Estimates'!$A13*2299603,7450589)*4658+7450581)*383,99991)*7440893+MOD(MOD(999999999999989,MOD(TrialID*2246527+V$11*2399993+0*2100869+0*1918303+'Risk Estimates'!$A13*1624729,7450987)*7580+7560584)*17669,7440893))*1343,4294967296))+0.5)/2^32 -> 0.07123969903 | W13: =IFERROR(IF('Risk Estimates'!$U13<'Risk Estimates'!$D13,_xlfn.LOGNORM.INV('Risk Estimates'!$V13,(LN('Risk Estimates'!$F13)+LN('Risk Estimates'!$E13))/2, (LN('Risk Estimates'!$F13)-LN('Risk Estimates'!$E13))/3.29),0), 0) -> 0 | X13: =IFERROR((1-'Risk Estimates'!$I13)*'Risk Estimates'!$T13, 'Risk Estimates'!$T13) -> 976020.7677 | Y13: =IFERROR(IF('Risk Estimates'!$U13<(1-'Risk Estimates'!$I13)*'Risk Estimates'!$D13,_xlfn.LOGNORM.INV('Risk Estimates'!$V13,(LN('Risk Estimates'!$F13)+LN('Risk Estimates'!$E13))/2, (LN('Risk Estimates'!$F13)-LN('Risk Estimates'!$E13))/3.29),0), 0) -> 0 | Z13: =IFERROR(('Risk Estimates'!$T13-'Risk Estimates'!$X13)/'Risk Estimates'!$H13-1, 0) -> 12.01361024
A14: =ROW('Risk Estimates'!$B14)-ROW('Risk Estimates'!$B$12) -> 2 | B14: =TRIM(IF(NOT(ISBLANK(K14)),K14,IFERROR(INDEX(_xlfn.TEXTSPLIT(AI_CORRECTED_RISKS,,":::"),'Risk Estimates'!A14),""))) -> Ransomware attack causing a week-long shutdown of critical systems | C14: =IF(NOT(ISBLANK(L14)),L14,IFERROR(INDEX(_xlfn.TEXTSPLIT(AI_CORRECTED_TAGS,,":::"),'Risk Estimates'!A14),"")) -> Ransomware Attacks | D14: =IF(NOT(ISBLANK(M14)),M14,IFERROR(VALUE(INDEX(_xlfn.TEXTSPLIT(AI_PROB_CORRECTED,,":::"),'Risk Estimates'!A14)),"")) -> 0.2 | E14: =IF(NOT(ISBLANK(N14)),N14,IFERROR(INDEX(AI_LB_UB,A14,1),"")) -> 1000000 | F14: =IF(NOT(ISBLANK(O14)),O14,IFERROR(INDEX(AI_LB_UB,A14,2),"")) -> 10000000 | G14: =IF(NOT(ISBLANK(P14)),P14,IFERROR(INDEX(AI_Controls,A14,2),"")) -> Deploy a robust incident response plan with regular ransomware attack simulations | H14: =IF(NOT(ISBLANK(Q14)),Q14,IFERROR(INDEX(_xlfn.ANCHORARRAY('AI Steps'!$D$37),A14,1),"")) -> 750000 | I14: =IF(NOT(ISBLANK(R14)),R14,IFERROR(INDEX(_xlfn.ANCHORARRAY('AI Steps'!$E$37),A14,1),"")) -> 0.25 | T14: =IFERROR(EXP(((LN('Risk Estimates'!$F14)+LN('Risk Estimates'!$E14))/2)+((LN('Risk Estimates'!$F14)-LN('Risk Estimates'!$E14))/3.28971)^2/2)*'Risk Estimates'!$D14, 0) -> 808002.235 | U14: =((MOD((MOD(MOD(999999999999989,MOD(TrialID*2499997+U$11*1800451+0*2000371+0*1796777+'Risk Estimates'!$A14*2299603,7450589)*4658+7450581)*383,99991)*7440893+MOD(MOD(999999999999989,MOD(TrialID*2246527+U$11*2399993+0*2100869+0*1918303+'Risk Estimates'!$A14*1624729,7450987)*7580+7560584)*17669,7440893))*1343,4294967296))+0.5)/2^32 -> 0.6386463974 | V14: =((MOD((MOD(MOD(999999999999989,MOD(TrialID*2499997+V$11*1800451+0*2000371+0*1796777+'Risk Estimates'!$A14*2299603,7450589)*4658+7450581)*383,99991)*7440893+MOD(MOD(999999999999989,MOD(TrialID*2246527+V$11*2399993+0*2100869+0*1918303+'Risk Estimates'!$A14*1624729,7450987)*7580+7560584)*17669,7440893))*1343,4294967296))+0.5)/2^32 -> 0.84794607 | W14: =IFERROR(IF('Risk Estimates'!$U14<'Risk Estimates'!$D14,_xlfn.LOGNORM.INV('Risk Estimates'!$V14,(LN('Risk Estimates'!$F14)+LN('Risk Estimates'!$E14))/2, (LN('Risk Estimates'!$F14)-LN('Risk Estimates'!$E14))/3.29),0), 0) -> 0 | X14: =IFERROR((1-'Risk Estimates'!$I14)*'Risk Estimates'!$T14, 'Risk Estimates'!$T14) -> 606001.6762 | Y14: =IFERROR(IF('Risk Estimates'!$U14<(1-'Risk Estimates'!$I14)*'Risk Estimates'!$D14,_xlfn.LOGNORM.INV('Risk Estimates'!$V14,(LN('Risk Estimates'!$F14)+LN('Risk Estimates'!$E14))/2, (LN('Risk Estimates'!$F14)-LN('Risk Estimates'!$E14))/3.29),0), 0) -> 0 | Z14: =IFERROR(('Risk Estimates'!$T14-'Risk Estimates'!$X14)/'Risk Estimates'!$H14-1, 0) -> -0.7306659217
A15: =ROW('Risk Estimates'!$B15)-ROW('Risk Estimates'!$B$12) -> 3 | B15: =TRIM(IF(NOT(ISBLANK(K15)),K15,IFERROR(INDEX(_xlfn.TEXTSPLIT(AI_CORRECTED_RISKS,,":::"),'Risk Estimates'!A15),""))) -> Insider threat leading to the theft of proprietary algorithms | C15: =IF(NOT(ISBLANK(L15)),L15,IFERROR(INDEX(_xlfn.TEXTSPLIT(AI_CORRECTED_TAGS,,":::"),'Risk Estimates'!A15),"")) -> Insider Threats | D15: =IF(NOT(ISBLANK(M15)),M15,IFERROR(VALUE(INDEX(_xlfn.TEXTSPLIT(AI_PROB_CORRECTED,,":::"),'Risk Estimates'!A15)),"")) -> 0.15 | E15: =IF(NOT(ISBLANK(N15)),N15,IFERROR(INDEX(AI_LB_UB,A15,1),"")) -> 750000 | F15: =IF(NOT(ISBLANK(O15)),O15,IFERROR(INDEX(AI_LB_UB,A15,2),"")) -> 7500000 | G15: =IF(NOT(ISBLANK(P15)),P15,IFERROR(INDEX(AI_Controls,A15,2),"")) -> Establish a comprehensive insider threat detection program with behavioral analytics | H15: =IF(NOT(ISBLANK(Q15)),Q15,IFERROR(INDEX(_xlfn.ANCHORARRAY('AI Steps'!$D$37),A15,1),"")) -> 600000 | I15: =IF(NOT(ISBLANK(R15)),R15,IFERROR(INDEX(_xlfn.ANCHORARRAY('AI Steps'!$E$37),A15,1),"")) -> 0.2 | T15: =IFERROR(EXP(((LN('Risk Estimates'!$F15)+LN('Risk Estimates'!$E15))/2)+((LN('Risk Estimates'!$F15)-LN('Risk Estimates'!$E15))/3.28971)^2/2)*'Risk Estimates'!$D15, 0) -> 454501.2572 | U15: =((MOD((MOD(MOD(999999999999989,MOD(TrialID*2499997+U$11*1800451+0*2000371+0*1796777+'Risk Estimates'!$A15*2299603,7450589)*4658+7450581)*383,99991)*7440893+MOD(MOD(999999999999989,MOD(TrialID*2246527+U$11*2399993+0*2100869+0*1918303+'Risk Estimates'!$A15*1624729,7450987)*7580+7560584)*17669,7440893))*1343,4294967296))+0.5)/2^32 -> 0.3813431408 | V15: =((MOD((MOD(MOD(999999999999989,MOD(TrialID*2499997+V$11*1800451+0*2000371+0*1796777+'Risk Estimates'!$A15*2299603,7450589)*4658+7450581)*383,99991)*7440893+MOD(MOD(999999999999989,MOD(TrialID*2246527+V$11*2399993+0*2100869+0*1918303+'Risk Estimates'!$A15*1624729,7450987)*7580+7560584)*17669,7440893))*1343,4294967296))+0.5)/2^32 -> 0.5859745572 | W15: =IFERROR(IF('Risk Estimates'!$U15<'Risk Estimates'!$D15,_xlfn.LOGNORM.INV('Risk Estimates'!$V15,(LN('Risk Estimates'!$F15)+LN('Risk Estimates'!$E15))/2, (LN('Risk Estimates'!$F15)-LN('Risk Estimates'!$E15))/3.29),0), 0) -> 0 | X15: =IFERROR((1-'Risk Estimates'!$I15)*'Risk Estimates'!$T15, 'Risk Estimates'!$T15) -> 363601.0057 | Y15: =IFERROR(IF('Risk Estimates'!$U15<(1-'Risk Estimates'!$I15)*'Risk Estimates'!$D15,_xlfn.LOGNORM.INV('Risk Estimates'!$V15,(LN('Risk Estimates'!$F15)+LN('Risk Estimates'!$E15))/2, (LN('Risk Estimates'!$F15)-LN('Risk Estimates'!$E15))/3.29),0), 0) -> 0 | Z15: =IFERROR(('Risk Estimates'!$T15-'Risk Estimates'!$X15)/'Risk Estimates'!$H15-1, 0) -> -0.8484995809
A16: =ROW('Risk Estimates'!$B16)-ROW('Risk Estimates'!$B$12) -> 4 | B16: =TRIM(IF(NOT(ISBLANK(K16)),K16,IFERROR(INDEX(_xlfn.TEXTSPLIT(AI_CORRECTED_RISKS,,":::"),'Risk Estimates'!A16),""))) -> Third-party vendor data leak exposing sensitive client information | C16: =IF(NOT(ISBLANK(L16)),L16,IFERROR(INDEX(_xlfn.TEXTSPLIT(AI_CORRECTED_TAGS,,":::"),'Risk Estimates'!A16),"")) -> Third-Party Vendor Risks | D16: =IF(NOT(ISBLANK(M16)),M16,IFERROR(VALUE(INDEX(_xlfn.TEXTSPLIT(AI_PROB_CORRECTED,,":::"),'Risk Estimates'!A16)),"")) -> 0.1 | E16: =IF(NOT(ISBLANK(N16)),N16,IFERROR(INDEX(AI_LB_UB,A16,1),"")) -> 500000 | F16: =IF(NOT(ISBLANK(O16)),O16,IFERROR(INDEX(AI_LB_UB,A16,2),"")) -> 5000000 | G16: =IF(NOT(ISBLANK(P16)),P16,IFERROR(INDEX(AI_Controls,A16,2),"")) -> Conduct thorough security audits and compliance checks for all third-party vendors | H16: =IF(NOT(ISBLANK(Q16)),Q16,IFERROR(INDEX(_xlfn.ANCHORARRAY('AI Steps'!$D$37),A16,1),"")) -> 400000 | I16: =IF(NOT(ISBLANK(R16)),R16,IFERROR(INDEX(_xlfn.ANCHORARRAY('AI Steps'!$E$37),A16,1),"")) -> 0.15 | T16: =IFERROR(EXP(((LN('Risk Estimates'!$F16)+LN('Risk Estimates'!$E16))/2)+((LN('Risk Estimates'!$F16)-LN('Risk Estimates'!$E16))/3.28971)^2/2)*'Risk Estimates'!$D16, 0) -> 202000.5587 | U16: =((MOD((MOD(MOD(999999999999989,MOD(TrialID*2499997+U$11*1800451+0*2000371+0*1796777+'Risk Estimates'!$A16*2299603,7450589)*4658+7450581)*383,99991)*7440893+MOD(MOD(999999999999989,MOD(TrialID*2246527+U$11*2399993+0*2100869+0*1918303+'Risk Estimates'!$A16*1624729,7450987)*7580+7560584)*17669,7440893))*1343,4294967296))+0.5)/2^32 -> 0.1236485265 | V16: =((MOD((MOD(MOD(999999999999989,MOD(TrialID*2499997+V$11*1800451+0*2000371+0*1796777+'Risk Estimates'!$A16*2299603,7450589)*4658+7450581)*383,99991)*7440893+MOD(MOD(999999999999989,MOD(TrialID*2246527+V$11*2399993+0*2100869+0*1918303+'Risk Estimates'!$A16*1624729,7450987)*7580+7560584)*17669,7440893))*1343,4294967296))+0.5)/2^32 -> 0.4895891204 | W16: =IFERROR(IF('Risk Estimates'!$U16<'Risk Estimates'!$D16,_xlfn.LOGNORM.INV('Risk Estimates'!$V16,(LN('Risk Estimates'!$F16)+LN('Risk Estimates'!$E16))/2, (LN('Risk Estimates'!$F16)-LN('Risk Estimates'!$E16))/3.29),0), 0) -> 0 | X16: =IFERROR((1-'Risk Estimates'!$I16)*'Risk Estimates'!$T16, 'Risk Estimates'!$T16) -> 171700.4749 | Y16: =IFERROR(IF('Risk Estimates'!$U16<(1-'Risk Estimates'!$I16)*'Risk Estimates'!$D16,_xlfn.LOGNORM.INV('Risk Estimates'!$V16,(LN('Risk Estimates'!$F16)+LN('Risk Estimates'!$E16))/2, (LN('Risk Estimates'!$F16)-LN('Risk Estimates'!$E16))/3.29),0), 0) -> 0 | Z16: =IFERROR(('Risk Estimates'!$T16-'Risk Estimates'!$X16)/'Risk Estimates'!$H16-1, 0) -> -0.9242497905
A17: =ROW('Risk Estimates'!$B17)-ROW('Risk Estimates'!$B$12) -> 5 | B17: =TRIM(IF(NOT(ISBLANK(K17)),K17,IFERROR(INDEX(_xlfn.TEXTSPLIT(AI_CORRECTED_RISKS,,":::"),'Risk Estimates'!A17),""))) -> Phishing attack compromising executive email accounts | C17: =IF(NOT(ISBLANK(L17)),L17,IFERROR(INDEX(_xlfn.TEXTSPLIT(AI_CORRECTED_TAGS,,":::"),'Risk Estimates'!A17),"")) -> Phishing Attacks | D17: =IF(NOT(ISBLANK(M17)),M17,IFERROR(VALUE(INDEX(_xlfn.TEXTSPLIT(AI_PROB_CORRECTED,,":::"),'Risk Estimates'!A17)),"")) -> 0.05 | E17: =IF(NOT(ISBLANK(N17)),N17,IFERROR(INDEX(AI_LB_UB,A17,1),"")) -> 250000 | F17: =IF(NOT(ISBLANK(O17)),O17,IFERROR(INDEX(AI_LB_UB,A17,2),"")) -> 2500000 | G17: =IF(NOT(ISBLANK(P17)),P17,IFERROR(INDEX(AI_Controls,A17,2),"")) -> Implement multi-factor authentication and regular phishing simulation training for executives | H17: =IF(NOT(ISBLANK(Q17)),Q17,IFERROR(INDEX(_xlfn.ANCHORARRAY('AI Steps'!$D$37),A17,1),"")) -> 300000 | I17: =IF(NOT(ISBLANK(R17)),R17,IFERROR(INDEX(_xlfn.ANCHORARRAY('AI Steps'!$E$37),A17,1),"")) -> 0.1 | T17: =IFERROR(EXP(((LN('Risk Estimates'!$F17)+LN('Risk Estimates'!$E17))/2)+((LN('Risk Estimates'!$F17)-LN('Risk Estimates'!$E17))/3.28971)^2/2)*'Risk Estimates'!$D17, 0) -> 50500.13968 | U17: =((MOD((MOD(MOD(999999999999989,MOD(TrialID*2499997+U$11*1800451+0*2000371+0*1796777+'Risk Estimates'!$A17*2299603,7450589)*4658+7450581)*383,99991)*7440893+MOD(MOD(999999999999989,MOD(TrialID*2246527+U$11*2399993+0*2100869+0*1918303+'Risk Estimates'!$A17*1624729,7450987)*7580+7560584)*17669,7440893))*1343,4294967296))+0.5)/2^32 -> 0.4497353573 | V17: =((MOD((MOD(MOD(999999999999989,MOD(TrialID*2499997+V$11*1800451+0*2000371+0*1796777+'Risk Estimates'!$A17*2299603,7450589)*4658+7450581)*383,99991)*7440893+MOD(MOD(999999999999989,MOD(TrialID*2246527+V$11*2399993+0*2100869+0*1918303+'Risk Estimates'!$A17*1624729,7450987)*7580+7560584)*17669,7440893))*1343,4294967296))+0.5)/2^32 -> 0.2099724795 | W17: =IFERROR(IF('Risk Estimates'!$U17<'Risk Estimates'!$D17,_xlfn.LOGNORM.INV('Risk Estimates'!$V17,(LN('Risk Estimates'!$F17)+LN('Risk Estimates'!$E17))/2, (LN('Risk Estimates'!$F17)-LN('Risk Estimates'!$E17))/3.29),0), 0) -> 0 | X17: =IFERROR((1-'Risk Estimates'!$I17)*'Risk Estimates'!$T17, 'Risk Estimates'!$T17) -> 45450.12572 | Y17: =IFERROR(IF('Risk Estimates'!$U17<(1-'Risk Estimates'!$I17)*'Risk Estimates'!$D17,_xlfn.LOGNORM.INV('Risk Estimates'!$V17,(LN('Risk Estimates'!$F17)+LN('Risk Estimates'!$E17))/2, (LN('Risk Estimates'!$F17)-LN('Risk Estimates'!$E17))/3.29),0), 0) -> 0 | Z17: =IFERROR(('Risk Estimates'!$T17-'Risk Estimates'!$X17)/'Risk Estimates'!$H17-1, 0) -> -0.9831666201
A18: =ROW('Risk Estimates'!$B18)-ROW('Risk Estimates'!$B$12) -> 6 | B18: =TRIM(IF(NOT(ISBLANK(K18)),K18,IFERROR(INDEX(_xlfn.TEXTSPLIT(AI_CORRECTED_RISKS,,":::"),'Risk Estimates'!A18),""))) -> Data breach involving the loss of encrypted financial data | C18: =IF(NOT(ISBLANK(L18)),L18,IFERROR(INDEX(_xlfn.TEXTSPLIT(AI_CORRECTED_TAGS,,":::"),'Risk Estimates'!A18),"")) -> Data Breaches | D18: =IF(NOT(ISBLANK(M18)),M18,IFERROR(VALUE(INDEX(_xlfn.TEXTSPLIT(AI_PROB_CORRECTED,,":::"),'Risk Estimates'!A18)),"")) -> 0.25 | E18: =IF(NOT(ISBLANK(N18)),N18,IFERROR(INDEX(AI_LB_UB,A18,1),"")) -> 1000000 | F18: =IF(NOT(ISBLANK(O18)),O18,IFERROR(INDEX(AI_LB_UB,A18,2),"")) -> 10000000 | G18: =IF(NOT(ISBLANK(P18)),P18,IFERROR(INDEX(AI_Controls,A18,2),"")) -> Enhance encryption protocols and conduct regular penetration testing | H18: =IF(NOT(ISBLANK(Q18)),Q18,IFERROR(INDEX(_xlfn.ANCHORARRAY('AI Steps'!$D$37),A18,1),"")) -> 550000 | I18: =IF(NOT(ISBLANK(R18)),R18,IFERROR(INDEX(_xlfn.ANCHORARRAY('AI Steps'!$E$37),A18,1),"")) -> 0.35 | T18: =IFERROR(EXP(((LN('Risk Estimates'!$F18)+LN('Risk Estimates'!$E18))/2)+((LN('Risk Estimates'!$F18)-LN('Risk Estimates'!$E18))/3.28971)^2/2)*'Risk Estimates'!$D18, 0) -> 1010002.794 | U18: =((MOD((MOD(MOD(999999999999989,MOD(TrialID*2499997+U$11*1800451+0*2000371+0*1796777+'Risk Estimates'!$A18*2299603,7450589)*4658+7450581)*383,99991)*7440893+MOD(MOD(999999999999989,MOD(TrialID*2246527+U$11*2399993+0*2100869+0*1918303+'Risk Estimates'!$A18*1624729,7450987)*7580+7560584)*17669,7440893))*1343,4294967296))+0.5)/2^32 -> 0.4766211855 | V18: =((MOD((MOD(MOD(999999999999989,MOD(TrialID*2499997+V$11*1800451+0*2000371+0*1796777+'Risk Estimates'!$A18*2299603,7450589)*4658+7450581)*383,99991)*7440893+MOD(MOD(999999999999989,MOD(TrialID*2246527+V$11*2399993+0*2100869+0*1918303+'Risk Estimates'!$A18*1624729,7450987)*7580+7560584)*17669,7440893))*1343,4294967296))+0.5)/2^32 -> 0.5026558769 | W18: =IFERROR(IF('Risk Estimates'!$U18<'Risk Estimates'!$D18,_xlfn.LOGNORM.INV('Risk Estimates'!$V18,(LN('Risk Estimates'!$F18)+LN('Risk Estimates'!$E18))/2, (LN('Risk Estimates'!$F18)-LN('Risk Estimates'!$E18))/3.29),0), 0) -> 0 | X18: =IFERROR((1-'Risk Estimates'!$I18)*'Risk Estimates'!$T18, 'Risk Estimates'!$T18) -> 656501.8159 | Y18: =IFERROR(IF('Risk Estimates'!$U18<(1-'Risk Estimates'!$I18)*'Risk Estimates'!$D18,_xlfn.LOGNORM.INV('Risk Estimates'!$V18,(LN('Risk Estimates'!$F18)+LN('Risk Estimates'!$E18))/2, (LN('Risk Estimates'!$F18)-LN('Risk Estimates'!$E18))/3.29),0), 0) -> 0 | Z18: =IFERROR(('Risk Estimates'!$T18-'Risk Estimates'!$X18)/'Risk Estimates'!$H18-1, 0) -> -0.3572709495
A19: =ROW('Risk Estimates'!$B19)-ROW('Risk Estimates'!$B$12) -> 7 | B19: =TRIM(IF(NOT(ISBLANK(K19)),K19,IFERROR(INDEX(_xlfn.TEXTSPLIT(AI_CORRECTED_RISKS,,":::"),'Risk Estimates'!A19),""))) -> Ransomware attack demanding cryptocurrency payment to restore operations | C19: =IF(NOT(ISBLANK(L19)),L19,IFERROR(INDEX(_xlfn.TEXTSPLIT(AI_CORRECTED_TAGS,,":::"),'Risk Estimates'!A19),"")) -> Ransomware Attacks | D19: =IF(NOT(ISBLANK(M19)),M19,IFERROR(VALUE(INDEX(_xlfn.TEXTSPLIT(AI_PROB_CORRECTED,,":::"),'Risk Estimates'!A19)),"")) -> 0.2 | E19: =IF(NOT(ISBLANK(N19)),N19,IFERROR(INDEX(AI_LB_UB,A19,1),"")) -> 1000000 | F19: =IF(NOT(ISBLANK(O19)),O19,IFERROR(INDEX(AI_LB_UB,A19,2),"")) -> 10000000 | G19: =IF(NOT(ISBLANK(P19)),P19,IFERROR(INDEX(AI_Controls,A19,2),"")) -> Develop a cryptocurrency payment response strategy and backup data recovery plan | H19: =IF(NOT(ISBLANK(Q19)),Q19,IFERROR(INDEX(_xlfn.ANCHORARRAY('AI Steps'!$D$37),A19,1),"")) -> 700000 | I19: =IF(NOT(ISBLANK(R19)),R19,IFERROR(INDEX(_xlfn.ANCHORARRAY('AI Steps'!$E$37),A19,1),"")) -> 0.25 | T19: =IFERROR(EXP(((LN('Risk Estimates'!$F19)+LN('Risk Estimates'!$E19))/2)+((LN('Risk Estimates'!$F19)-LN('Risk Estimates'!$E19))/3.28971)^2/2)*'Risk Estimates'!$D19, 0) -> 808002.235 | U19: =((MOD((MOD(MOD(999999999999989,MOD(TrialID*2499997+U$11*1800451+0*2000371+0*1796777+'Risk Estimates'!$A19*2299603,7450589)*4658+7450581)*383,99991)*7440893+MOD(MOD(999999999999989,MOD(TrialID*2246527+U$11*2399993+0*2100869+0*1918303+'Risk Estimates'!$A19*1624729,7450987)*7580+7560584)*17669,7440893))*1343,4294967296))+0.5)/2^32 -> 0.5726312815 | V19: =((MOD((MOD(MOD(999999999999989,MOD(TrialID*2499997+V$11*1800451+0*2000371+0*1796777+'Risk Estimates'!$A19*2299603,7450589)*4658+7450581)*383,99991)*7440893+MOD(MOD(999999999999989,MOD(TrialID*2246527+V$11*2399993+0*2100869+0*1918303+'Risk Estimates'!$A19*1624729,7450987)*7580+7560584)*17669,7440893))*1343,4294967296))+0.5)/2^32 -> 0.982844062 | W19: =IFERROR(IF('Risk Estimates'!$U19<'Risk Estimates'!$D19,_xlfn.LOGNORM.INV('Risk Estimates'!$V19,(LN('Risk Estimates'!$F19)+LN('Risk Estimates'!$E19))/2, (LN('Risk Estimates'!$F19)-LN('Risk Estimates'!$E19))/3.29),0), 0) -> 0 | X19: =IFERROR((1-'Risk Estimates'!$I19)*'Risk Estimates'!$T19, 'Risk Estimates'!$T19) -> 606001.6762 | Y19: =IFERROR(IF('Risk Estimates'!$U19<(1-'Risk Estimates'!$I19)*'Risk Estimates'!$D19,_xlfn.LOGNORM.INV('Risk Estimates'!$V19,(LN('Risk Estimates'!$F19)+LN('Risk Estimates'!$E19))/2, (LN('Risk Estimates'!$F19)-LN('Risk Estimates'!$E19))/3.29),0), 0) -> 0 | Z19: =IFERROR(('Risk Estimates'!$T19-'Risk Estimates'!$X19)/'Risk Estimates'!$H19-1, 0) -> -0.7114277732
A20: =ROW('Risk Estimates'!$B20)-ROW('Risk Estimates'!$B$12) -> 8 | B20: =TRIM(IF(NOT(ISBLANK(K20)),K20,IFERROR(INDEX(_xlfn.TEXTSPLIT(AI_CORRECTED_RISKS,,":::"),'Risk Estimates'!A20),""))) -> Insider threat facilitating unauthorized financial transactions | C20: =IF(NOT(ISBLANK(L20)),L20,IFERROR(INDEX(_xlfn.TEXTSPLIT(AI_CORRECTED_TAGS,,":::"),'Risk Estimates'!A20),"")) -> Insider Threats | D20: =IF(NOT(ISBLANK(M20)),M20,IFERROR(VALUE(INDEX(_xlfn.TEXTSPLIT(AI_PROB_CORRECTED,,":::"),'Risk Estimates'!A20)),"")) -> 0.15 | E20: =IF(NOT(ISBLANK(N20)),N20,IFERROR(INDEX(AI_LB_UB,A20,1),"")) -> 750000 | F20: =IF(NOT(ISBLANK(O20)),O20,IFERROR(INDEX(AI_LB_UB,A20,2),"")) -> 7500000 | G20: =IF(NOT(ISBLANK(P20)),P20,IFERROR(INDEX(AI_Controls,A20,2),"")) -> Introduce mandatory financial transaction monitoring and anomaly detection systems | H20: =IF(NOT(ISBLANK(Q20)),Q20,IFERROR(INDEX(_xlfn.ANCHORARRAY('AI Steps'!$D$37),A20,1),"")) -> 650000 | I20: =IF(NOT(ISBLANK(R20)),R20,IFERROR(INDEX(_xlfn.ANCHORARRAY('AI Steps'!$E$37),A20,1),"")) -> 0.2 | T20: =IFERROR(EXP(((LN('Risk Estimates'!$F20)+LN('Risk Estimates'!$E20))/2)+((LN('Risk Estimates'!$F20)-LN('Risk Estimates'!$E20))/3.28971)^2/2)*'Risk Estimates'!$D20, 0) -> 454501.2572 | U20: =((MOD((MOD(MOD(999999999999989,MOD(TrialID*2499997+U$11*1800451+0*2000371+0*1796777+'Risk Estimates'!$A20*2299603,7450589)*4658+7450581)*383,99991)*7440893+MOD(MOD(999999999999989,MOD(TrialID*2246527+U$11*2399993+0*2100869+0*1918303+'Risk Estimates'!$A20*1624729,7450987)*7580+7560584)*17669,7440893))*1343,4294967296))+0.5)/2^32 -> 0.7708323736 | V20: =((MOD((MOD(MOD(999999999999989,MOD(TrialID*2499997+V$11*1800451+0*2000371+0*1796777+'Risk Estimates'!$A20*2299603,7450589)*4658+7450581)*383,99991)*7440893+MOD(MOD(999999999999989,MOD(TrialID*2246527+V$11*2399993+0*2100869+0*1918303+'Risk Estimates'!$A20*1624729,7450987)*7580+7560584)*17669,7440893))*1343,4294967296))+0.5)/2^32 -> 0.4295262079 | W20: =IFERROR(IF('Risk Estimates'!$U20<'Risk Estimates'!$D20,_xlfn.LOGNORM.INV('Risk Estimates'!$V20,(LN('Risk Estimates'!$F20)+LN('Risk Estimates'!$E20))/2, (LN('Risk Estimates'!$F20)-LN('Risk Estimates'!$E20))/3.29),0), 0) -> 0 | X20: =IFERROR((1-'Risk Estimates'!$I20)*'Risk Estimates'!$T20, 'Risk Estimates'!$T20) -> 363601.0057 | Y20: =IFERROR(IF('Risk Estimates'!$U20<(1-'Risk Estimates'!$I20)*'Risk Estimates'!$D20,_xlfn.LOGNORM.INV('Risk Estimates'!$V20,(LN('Risk Estimates'!$F20)+LN('Risk Estimates'!$E20))/2, (LN('Risk Estimates'!$F20)-LN('Risk Estimates'!$E20))/3.29),0), 0) -> 0 | Z20: =IFERROR(('Risk Estimates'!$T20-'Risk Estimates'!$X20)/'Risk Estimates'!$H20-1, 0) -> -0.8601534593
A21: =ROW('Risk Estimates'!$B21)-ROW('Risk Estimates'!$B$12) -> 9 | B21: =TRIM(IF(NOT(ISBLANK(K21)),K21,IFERROR(INDEX(_xlfn.TEXTSPLIT(AI_CORRECTED_RISKS,,":::"),'Risk Estimates'!A21),""))) -> Third-party vendor system failure disrupting service delivery | C21: =IF(NOT(ISBLANK(L21)),L21,IFERROR(INDEX(_xlfn.TEXTSPLIT(AI_CORRECTED_TAGS,,":::"),'Risk Estimates'!A21),"")) -> Third-Party Vendor Risks | D21: =IF(NOT(ISBLANK(M21)),M21,IFERROR(VALUE(INDEX(_xlfn.TEXTSPLIT(AI_PROB_CORRECTED,,":::"),'Risk Estimates'!A21)),"")) -> 0.1 | E21: =IF(NOT(ISBLANK(N21)),N21,IFERROR(INDEX(AI_LB_UB,A21,1),"")) -> 500000 | F21: =IF(NOT(ISBLANK(O21)),O21,IFERROR(INDEX(AI_LB_UB,A21,2),"")) -> 5000000 | G21: =IF(NOT(ISBLANK(P21)),P21,IFERROR(INDEX(AI_Controls,A21,2),"")) -> Create a vendor risk management framework with contingency planning | H21: =IF(NOT(ISBLANK(Q21)),Q21,IFERROR(INDEX(_xlfn.ANCHORARRAY('AI Steps'!$D$37),A21,1),"")) -> 450000 | I21: =IF(NOT(ISBLANK(R21)),R21,IFERROR(INDEX(_xlfn.ANCHORARRAY('AI Steps'!$E$37),A21,1),"")) -> 0.15 | T21: =IFERROR(EXP(((LN('Risk Estimates'!$F21)+LN('Risk Estimates'!$E21))/2)+((LN('Risk Estimates'!$F21)-LN('Risk Estimates'!$E21))/3.28971)^2/2)*'Risk Estimates'!$D21, 0) -> 202000.5587 | U21: =((MOD((MOD(MOD(999999999999989,MOD(TrialID*2499997+U$11*1800451+0*2000371+0*1796777+'Risk Estimates'!$A21*2299603,7450589)*4658+7450581)*383,99991)*7440893+MOD(MOD(999999999999989,MOD(TrialID*2246527+U$11*2399993+0*2100869+0*1918303+'Risk Estimates'!$A21*1624729,7450987)*7580+7560584)*17669,7440893))*1343,4294967296))+0.5)/2^32 -> 0.2134444282 | V21: =((MOD((MOD(MOD(999999999999989,MOD(TrialID*2499997+V$11*1800451+0*2000371+0*1796777+'Risk Estimates'!$A21*2299603,7450589)*4658+7450581)*383,99991)*7440893+MOD(MOD(999999999999989,MOD(TrialID*2246527+V$11*2399993+0*2100869+0*1918303+'Risk Estimates'!$A21*1624729,7450987)*7580+7560584)*17669,7440893))*1343,4294967296))+0.5)/2^32 -> 0.9888332397 | W21: =IFERROR(IF('Risk Estimates'!$U21<'Risk Estimates'!$D21,_xlfn.LOGNORM.INV('Risk Estimates'!$V21,(LN('Risk Estimates'!$F21)+LN('Risk Estimates'!$E21))/2, (LN('Risk Estimates'!$F21)-LN('Risk Estimates'!$E21))/3.29),0), 0) -> 0 | X21: =IFERROR((1-'Risk Estimates'!$I21)*'Risk Estimates'!$T21, 'Risk Estimates'!$T21) -> 171700.4749 | Y21: =IFERROR(IF('Risk Estimates'!$U21<(1-'Risk Estimates'!$I21)*'Risk Estimates'!$D21,_xlfn.LOGNORM.INV('Risk Estimates'!$V21,(LN('Risk Estimates'!$F21)+LN('Risk Estimates'!$E21))/2, (LN('Risk Estimates'!$F21)-LN('Risk Estimates'!$E21))/3.29),0), 0) -> 0 | Z21: =IFERROR(('Risk Estimates'!$T21-'Risk Estimates'!$X21)/'Risk Estimates'!$H21-1, 0) -> -0.9326664804
A22: =ROW('Risk Estimates'!$B22)-ROW('Risk Estimates'!$B$12) -> 10 | B22: =TRIM(IF(NOT(ISBLANK(K22)),K22,IFERROR(INDEX(_xlfn.TEXTSPLIT(AI_CORRECTED_RISKS,,":::"),'Risk Estimates'!A22),""))) -> Phishing attack resulting in fraudulent wire transfers | C22: =IF(NOT(ISBLANK(L22)),L22,IFERROR(INDEX(_xlfn.TEXTSPLIT(AI_CORRECTED_TAGS,,":::"),'Risk Estimates'!A22),"")) -> Phishing Attacks | D22: =IF(NOT(ISBLANK(M22)),M22,IFERROR(VALUE(INDEX(_xlfn.TEXTSPLIT(AI_PROB_CORRECTED,,":::"),'Risk Estimates'!A22)),"")) -> 0.05 | E22: =IF(NOT(ISBLANK(N22)),N22,IFERROR(INDEX(AI_LB_UB,A22,1),"")) -> 250000 | F22: =IF(NOT(ISBLANK(O22)),O22,IFERROR(INDEX(AI_LB_UB,A22,2),"")) -> 2500000 | G22: =IF(NOT(ISBLANK(P22)),P22,IFERROR(INDEX(AI_Controls,A22,2),"")) -> Establish a fraud detection system with real-time transaction monitoring | H22: =IF(NOT(ISBLANK(Q22)),Q22,IFERROR(INDEX(_xlfn.ANCHORARRAY('AI Steps'!$D$37),A22,1),"")) -> 350000 | I22: =IF(NOT(ISBLANK(R22)),R22,IFERROR(INDEX(_xlfn.ANCHORARRAY('AI Steps'!$E$37),A22,1),"")) -> 0.1 | T22: =IFERROR(EXP(((LN('Risk Estimates'!$F22)+LN('Risk Estimates'!$E22))/2)+((LN('Risk Estimates'!$F22)-LN('Risk Estimates'!$E22))/3.28971)^2/2)*'Risk Estimates'!$D22, 0) -> 50500.13968 | U22: =((MOD((MOD(MOD(999999999999989,MOD(TrialID*2499997+U$11*1800451+0*2000371+0*1796777+'Risk Estimates'!$A22*2299603,7450589)*4658+7450581)*383,99991)*7440893+MOD(MOD(999999999999989,MOD(TrialID*2246527+U$11*2399993+0*2100869+0*1918303+'Risk Estimates'!$A22*1624729,7450987)*7580+7560584)*17669,7440893))*1343,4294967296))+0.5)/2^32 -> 0.9359795836 | V22: =((MOD((MOD(MOD(999999999999989,MOD(TrialID*2499997+V$11*1800451+0*2000371+0*1796777+'Risk Estimates'!$A22*2299603,7450589)*4658+7450581)*383,99991)*7440893+MOD(MOD(999999999999989,MOD(TrialID*2246527+V$11*2399993+0*2100869+0*1918303+'Risk Estimates'!$A22*1624729,7450987)*7580+7560584)*17669,7440893))*1343,4294967296))+0.5)/2^32 -> 0.3125271172 | W22: =IFERROR(IF('Risk Estimates'!$U22<'Risk Estimates'!$D22,_xlfn.LOGNORM.INV('Risk Estimates'!$V22,(LN('Risk Estimates'!$F22)+LN('Risk Estimates'!$E22))/2, (LN('Risk Estimates'!$F22)-LN('Risk Estimates'!$E22))/3.29),0), 0) -> 0 | X22: =IFERROR((1-'Risk Estimates'!$I22)*'Risk Estimates'!$T22, 'Risk Estimates'!$T22) -> 45450.12572 | Y22: =IFERROR(IF('Risk Estimates'!$U22<(1-'Risk Estimates'!$I22)*'Risk Estimates'!$D22,_xlfn.LOGNORM.INV('Risk Estimates'!$V22,(LN('Risk Estimates'!$F22)+LN('Risk Estimates'!$E22))/2, (LN('Risk Estimates'!$F22)-LN('Risk Estimates'!$E22))/3.29),0), 0) -> 0 | Z22: =IFERROR(('Risk Estimates'!$T22-'Risk Estimates'!$X22)/'Risk Estimates'!$H22-1, 0) -> -0.9855713887
A23: =ROW('Risk Estimates'!$B23)-ROW('Risk Estimates'!$B$12) -> 11 | B23: =TRIM(IF(NOT(ISBLANK(K23)),K23,IFERROR(INDEX(_xlfn.TEXTSPLIT(AI_CORRECTED_RISKS,,":::"),'Risk Estimates'!A23),""))) ->  | C23: =IF(NOT(ISBLANK(L23)),L23,IFERROR(INDEX(_xlfn.TEXTSPLIT(AI_CORRECTED_TAGS,,":::"),'Risk Estimates'!A23),"")) ->  | D23: =IF(NOT(ISBLANK(M23)),M23,IFERROR(VALUE(INDEX(_xlfn.TEXTSPLIT(AI_PROB_CORRECTED,,":::"),'Risk Estimates'!A23)),"")) ->  | E23: =IF(NOT(ISBLANK(N23)),N23,IFERROR(INDEX(AI_LB_UB,A23,1),"")) ->  | F23: =IF(NOT(ISBLANK(O23)),O23,IFERROR(INDEX(AI_LB_UB,A23,2),"")) ->  | G23: =IF(NOT(ISBLANK(P23)),P23,IFERROR(INDEX(AI_Controls,A23,2),"")) ->  | H23: =IF(NOT(ISBLANK(Q23)),Q23,IFERROR(INDEX(_xlfn.ANCHORARRAY('AI Steps'!$D$37),A23,1),"")) ->  | I23: =IF(NOT(ISBLANK(R23)),R23,IFERROR(INDEX(_xlfn.ANCHORARRAY('AI Steps'!$E$37),A23,1),"")) ->  | T23: =IFERROR(EXP(((LN('Risk Estimates'!$F23)+LN('Risk Estimates'!$E23))/2)+((LN('Risk Estimates'!$F23)-LN('Risk Estimates'!$E23))/3.28971)^2/2)*'Risk Estimates'!$D23, 0) -> 0 | U23: =((MOD((MOD(MOD(999999999999989,MOD(TrialID*2499997+U$11*1800451+0*2000371+0*1796777+'Risk Estimates'!$A23*2299603,7450589)*4658+7450581)*383,99991)*7440893+MOD(MOD(999999999999989,MOD(TrialID*2246527+U$11*2399993+0*2100869+0*1918303+'Risk Estimates'!$A23*1624729,7450987)*7580+7560584)*17669,7440893))*1343,4294967296))+0.5)/2^32 -> 0.6443481374 | V23: =((MOD((MOD(MOD(999999999999989,MOD(TrialID*2499997+V$11*1800451+0*2000371+0*1796777+'Risk Estimates'!$A23*2299603,7450589)*4658+7450581)*383,99991)*7440893+MOD(MOD(999999999999989,MOD(TrialID*2246527+V$11*2399993+0*2100869+0*1918303+'Risk Estimates'!$A23*1624729,7450987)*7580+7560584)*17669,7440893))*1343,4294967296))+0.5)/2^32 -> 0.5201272432 | W23: =IFERROR(IF('Risk Estimates'!$U23<'Risk Estimates'!$D23,_xlfn.LOGNORM.INV('Risk Estimates'!$V23,(LN('Risk Estimates'!$F23)+LN('Risk Estimates'!$E23))/2, (LN('Risk Estimates'!$F23)-LN('Risk Estimates'!$E23))/3.29),0), 0) -> 0 | X23: =IFERROR((1-'Risk Estimates'!$I23)*'Risk Estimates'!$T23, 'Risk Estimates'!$T23) -> 0 | Y23: =IFERROR(IF('Risk Estimates'!$U23<(1-'Risk Estimates'!$I23)*'Risk Estimates'!$D23,_xlfn.LOGNORM.INV('Risk Estimates'!$V23,(LN('Risk Estimates'!$F23)+LN('Risk Estimates'!$E23))/2, (LN('Risk Estimates'!$F23)-LN('Risk Estimates'!$E23))/3.29),0), 0) -> 0 | Z23: =IFERROR(('Risk Estimates'!$T23-'Risk Estimates'!$X23)/'Risk Estimates'!$H23-1, 0) -> 0
A24: =ROW('Risk Estimates'!$B24)-ROW('Risk Estimates'!$B$12) -> 12 | B24: =TRIM(IF(NOT(ISBLANK(K24)),K24,IFERROR(INDEX(_xlfn.TEXTSPLIT(AI_CORRECTED_RISKS,,":::"),'Risk Estimates'!A24),""))) ->  | C24: =IF(NOT(ISBLANK(L24)),L24,IFERROR(INDEX(_xlfn.TEXTSPLIT(AI_CORRECTED_TAGS,,":::"),'Risk Estimates'!A24),"")) ->  | D24: =IF(NOT(ISBLANK(M24)),M24,IFERROR(VALUE(INDEX(_xlfn.TEXTSPLIT(AI_PROB_CORRECTED,,":::"),'Risk Estimates'!A24)),"")) ->  | E24: =IF(NOT(ISBLANK(N24)),N24,IFERROR(INDEX(AI_LB_UB,A24,1),"")) ->  | F24: =IF(NOT(ISBLANK(O24)),O24,IFERROR(INDEX(AI_LB_UB,A24,2),"")) ->  | G24: =IF(NOT(ISBLANK(P24)),P24,IFERROR(INDEX(AI_Controls,A24,2),"")) ->  | H24: =IF(NOT(ISBLANK(Q24)),Q24,IFERROR(INDEX(_xlfn.ANCHORARRAY('AI Steps'!$D$37),A24,1),"")) ->  | I24: =IF(NOT(ISBLANK(R24)),R24,IFERROR(INDEX(_xlfn.ANCHORARRAY('AI Steps'!$E$37),A24,1),"")) ->  | T24: =IFERROR(EXP(((LN('Risk Estimates'!$F24)+LN('Risk Estimates'!$E24))/2)+((LN('Risk Estimates'!$F24)-LN('Risk Estimates'!$E24))/3.28971)^2/2)*'Risk Estimates'!$D24, 0) -> 0 | U24: =((MOD((MOD(MOD(999999999999989,MOD(TrialID*2499997+U$11*1800451+0*2000371+0*1796777+'Risk Estimates'!$A24*2299603,7450589)*4658+7450581)*383,99991)*7440893+MOD(MOD(999999999999989,MOD(TrialID*2246527+U$11*2399993+0*2100869+0*1918303+'Risk Estimates'!$A24*1624729,7450987)*7580+7560584)*17669,7440893))*1343,4294967296))+0.5)/2^32 -> 0.3394640387 | V24: =((MOD((MOD(MOD(999999999999989,MOD(TrialID*2499997+V$11*1800451+0*2000371+0*1796777+'Risk Estimates'!$A24*2299603,7450589)*4658+7450581)*383,99991)*7440893+MOD(MOD(999999999999989,MOD(TrialID*2246527+V$11*2399993+0*2100869+0*1918303+'Risk Estimates'!$A24*1624729,7450987)*7580+7560584)*17669,7440893))*1343,4294967296))+0.5)/2^32 -> 0.3462096687 | W24: =IFERROR(IF('Risk Estimates'!$U24<'Risk Estimates'!$D24,_xlfn.LOGNORM.INV('Risk Estimates'!$V24,(LN('Risk Estimates'!$F24)+LN('Risk Estimates'!$E24))/2, (LN('Risk Estimates'!$F24)-LN('Risk Estimates'!$E24))/3.29),0), 0) -> 0 | X24: =IFERROR((1-'Risk Estimates'!$I24)*'Risk Estimates'!$T24, 'Risk Estimates'!$T24) -> 0 | Y24: =IFERROR(IF('Risk Estimates'!$U24<(1-'Risk Estimates'!$I24)*'Risk Estimates'!$D24,_xlfn.LOGNORM.INV('Risk Estimates'!$V24,(LN('Risk Estimates'!$F24)+LN('Risk Estimates'!$E24))/2, (LN('Risk Estimates'!$F24)-LN('Risk Estimates'!$E24))/3.29),0), 0) -> 0 | Z24: =IFERROR(('Risk Estimates'!$T24-'Risk Estimates'!$X24)/'Risk Estimates'!$H24-1, 0) -> 0
A25: =ROW('Risk Estimates'!$B25)-ROW('Risk Estimates'!$B$12) -> 13 | B25: =TRIM(IF(NOT(ISBLANK(K25)),K25,IFERROR(INDEX(_xlfn.TEXTSPLIT(AI_CORRECTED_RISKS,,":::"),'Risk Estimates'!A25),""))) ->  | C25: =IF(NOT(ISBLANK(L25)),L25,IFERROR(INDEX(_xlfn.TEXTSPLIT(AI_CORRECTED_TAGS,,":::"),'Risk Estimates'!A25),"")) ->  | D25: =IF(NOT(ISBLANK(M25)),M25,IFERROR(VALUE(INDEX(_xlfn.TEXTSPLIT(AI_PROB_CORRECTED,,":::"),'Risk Estimates'!A25)),"")) ->  | E25: =IF(NOT(ISBLANK(N25)),N25,IFERROR(INDEX(AI_LB_UB,A25,1),"")) ->  | F25: =IF(NOT(ISBLANK(O25)),O25,IFERROR(INDEX(AI_LB_UB,A25,2),"")) ->  | G25: =IF(NOT(ISBLANK(P25)),P25,IFERROR(INDEX(AI_Controls,A25,2),"")) ->  | H25: =IF(NOT(ISBLANK(Q25)),Q25,IFERROR(INDEX(_xlfn.ANCHORARRAY('AI Steps'!$D$37),A25,1),"")) ->  | I25: =IF(NOT(ISBLANK(R25)),R25,IFERROR(INDEX(_xlfn.ANCHORARRAY('AI Steps'!$E$37),A25,1),"")) ->  | T25: =IFERROR(EXP(((LN('Risk Estimates'!$F25)+LN('Risk Estimates'!$E25))/2)+((LN('Risk Estimates'!$F25)-LN('Risk Estimates'!$E25))/3.28971)^2/2)*'Risk Estimates'!$D25, 0) -> 0 | U25: =((MOD((MOD(MOD(999999999999989,MOD(TrialID*2499997+U$11*1800451+0*2000371+0*1796777+'Risk Estimates'!$A25*2299603,7450589)*4658+7450581)*383,99991)*7440893+MOD(MOD(999999999999989,MOD(TrialID*2246527+U$11*2399993+0*2100869+0*1918303+'Risk Estimates'!$A25*1624729,7450987)*7580+7560584)*17669,7440893))*1343,4294967296))+0.5)/2^32 -> 0.1044531605 | V25: =((MOD((MOD(MOD(999999999999989,MOD(TrialID*2499997+V$11*1800451+0*2000371+0*1796777+'Risk Estimates'!$A25*2299603,7450589)*4658+7450581)*383,99991)*7440893+MOD(MOD(999999999999989,MOD(TrialID*2246527+V$11*2399993+0*2100869+0*1918303+'Risk Estimates'!$A25*1624729,7450987)*7580+7560584)*17669,7440893))*1343,4294967296))+0.5)/2^32 -> 0.07305491727 | W25: =IFERROR(IF('Risk Estimates'!$U25<'Risk Estimates'!$D25,_xlfn.LOGNORM.INV('Risk Estimates'!$V25,(LN('Risk Estimates'!$F25)+LN('Risk Estimates'!$E25))/2, (LN('Risk Estimates'!$F25)-LN('Risk Estimates'!$E25))/3.29),0), 0) -> 0 | X25: =IFERROR((1-'Risk Estimates'!$I25)*'Risk Estimates'!$T25, 'Risk Estimates'!$T25) -> 0 | Y25: =IFERROR(IF('Risk Estimates'!$U25<(1-'Risk Estimates'!$I25)*'Risk Estimates'!$D25,_xlfn.LOGNORM.INV('Risk Estimates'!$V25,(LN('Risk Estimates'!$F25)+LN('Risk Estimates'!$E25))/2, (LN('Risk Estimates'!$F25)-LN('Risk Estimates'!$E25))/3.29),0), 0) -> 0 | Z25: =IFERROR(('Risk Estimates'!$T25-'Risk Estimates'!$X25)/'Risk Estimates'!$H25-1, 0) -> 0
A26: =ROW('Risk Estimates'!$B26)-ROW('Risk Estimates'!$B$12) -> 14 | B26: =TRIM(IF(NOT(ISBLANK(K26)),K26,IFERROR(INDEX(_xlfn.TEXTSPLIT(AI_CORRECTED_RISKS,,":::"),'Risk Estimates'!A26),""))) ->  | C26: =IF(NOT(ISBLANK(L26)),L26,IFERROR(INDEX(_xlfn.TEXTSPLIT(AI_CORRECTED_TAGS,,":::"),'Risk Estimates'!A26),"")) ->  | D26: =IF(NOT(ISBLANK(M26)),M26,IFERROR(VALUE(INDEX(_xlfn.TEXTSPLIT(AI_PROB_CORRECTED,,":::"),'Risk Estimates'!A26)),"")) ->  | E26: =IF(NOT(ISBLANK(N26)),N26,IFERROR(INDEX(AI_LB_UB,A26,1),"")) ->  | F26: =IF(NOT(ISBLANK(O26)),O26,IFERROR(INDEX(AI_LB_UB,A26,2),"")) ->  | G26: =IF(NOT(ISBLANK(P26)),P26,IFERROR(INDEX(AI_Controls,A26,2),"")) ->  | H26: =IF(NOT(ISBLANK(Q26)),Q26,IFERROR(INDEX(_xlfn.ANCHORARRAY('AI Steps'!$D$37),A26,1),"")) ->  | I26: =IF(NOT(ISBLANK(R26)),R26,IFERROR(INDEX(_xlfn.ANCHORARRAY('AI Steps'!$E$37),A26,1),"")) ->  | T26: =IFERROR(EXP(((LN('Risk Estimates'!$F26)+LN('Risk Estimates'!$E26))/2)+((LN('Risk Estimates'!$F26)-LN('Risk Estimates'!$E26))/3.28971)^2/2)*'Risk Estimates'!$D26, 0) -> 0 | U26: =((MOD((MOD(MOD(999999999999989,MOD(TrialID*2499997+U$11*1800451+0*2000371+0*1796777+'Risk Estimates'!$A26*2299603,7450589)*4658+7450581)*383,99991)*7440893+MOD(MOD(999999999999989,MOD(TrialID*2246527+U$11*2399993+0*2100869+0*1918303+'Risk Estimates'!$A26*1624729,7450987)*7580+7560584)*17669,7440893))*1343,4294967296))+0.5)/2^32 -> 0.2946084625 | V26: =((MOD((MOD(MOD(999999999999989,MOD(TrialID*2499997+V$11*1800451+0*2000371+0*1796777+'Risk Estimates'!$A26*2299603,7450589)*4658+7450581)*383,99991)*7440893+MOD(MOD(999999999999989,MOD(TrialID*2246527+V$11*2399993+0*2100869+0*1918303+'Risk Estimates'!$A26*1624729,7450987)*7580+7560584)*17669,7440893))*1343,4294967296))+0.5)/2^32 -> 0.05817151733 | W26: =IFERROR(IF('Risk Estimates'!$U26<'Risk Estimates'!$D26,_xlfn.LOGNORM.INV('Risk Estimates'!$V26,(LN('Risk Estimates'!$F26)+LN('Risk Estimates'!$E26))/2, (LN('Risk Estimates'!$F26)-LN('Risk Estimates'!$E26))/3.29),0), 0) -> 0 | X26: =IFERROR((1-'Risk Estimates'!$I26)*'Risk Estimates'!$T26, 'Risk Estimates'!$T26) -> 0 | Y26: =IFERROR(IF('Risk Estimates'!$U26<(1-'Risk Estimates'!$I26)*'Risk Estimates'!$D26,_xlfn.LOGNORM.INV('Risk Estimates'!$V26,(LN('Risk Estimates'!$F26)+LN('Risk Estimates'!$E26))/2, (LN('Risk Estimates'!$F26)-LN('Risk Estimates'!$E26))/3.29),0), 0) -> 0 | Z26: =IFERROR(('Risk Estimates'!$T26-'Risk Estimates'!$X26)/'Risk Estimates'!$H26-1, 0) -> 0
A27: =ROW('Risk Estimates'!$B27)-ROW('Risk Estimates'!$B$12) -> 15 | B27: =TRIM(IF(NOT(ISBLANK(K27)),K27,IFERROR(INDEX(_xlfn.TEXTSPLIT(AI_CORRECTED_RISKS,,":::"),'Risk Estimates'!A27),""))) ->  | C27: =IF(NOT(ISBLANK(L27)),L27,IFERROR(INDEX(_xlfn.TEXTSPLIT(AI_CORRECTED_TAGS,,":::"),'Risk Estimates'!A27),"")) ->  | D27: =IF(NOT(ISBLANK(M27)),M27,IFERROR(VALUE(INDEX(_xlfn.TEXTSPLIT(AI_PROB_CORRECTED,,":::"),'Risk Estimates'!A27)),"")) ->  | E27: =IF(NOT(ISBLANK(N27)),N27,IFERROR(INDEX(AI_LB_UB,A27,1),"")) ->  | F27: =IF(NOT(ISBLANK(O27)),O27,IFERROR(INDEX(AI_LB_UB,A27,2),"")) ->  | G27: =IF(NOT(ISBLANK(P27)),P27,IFERROR(INDEX(AI_Controls,A27,2),"")) ->  | H27: =IF(NOT(ISBLANK(Q27)),Q27,IFERROR(INDEX(_xlfn.ANCHORARRAY('AI Steps'!$D$37),A27,1),"")) ->  | I27: =IF(NOT(ISBLANK(R27)),R27,IFERROR(INDEX(_xlfn.ANCHORARRAY('AI Steps'!$E$37),A27,1),"")) ->  | T27: =IFERROR(EXP(((LN('Risk Estimates'!$F27)+LN('Risk Estimates'!$E27))/2)+((LN('Risk Estimates'!$F27)-LN('Risk Estimates'!$E27))/3.28971)^2/2)*'Risk Estimates'!$D27, 0) -> 0 | U27: =((MOD((MOD(MOD(999999999999989,MOD(TrialID*2499997+U$11*1800451+0*2000371+0*1796777+'Risk Estimates'!$A27*2299603,7450589)*4658+7450581)*383,99991)*7440893+MOD(MOD(999999999999989,MOD(TrialID*2246527+U$11*2399993+0*2100869+0*1918303+'Risk Estimates'!$A27*1624729,7450987)*7580+7560584)*17669,7440893))*1343,4294967296))+0.5)/2^32 -> 0.9767613331 | V27: =((MOD((MOD(MOD(999999999999989,MOD(TrialID*2499997+V$11*1800451+0*2000371+0*1796777+'Risk Estimates'!$A27*2299603,7450589)*4658+7450581)*383,99991)*7440893+MOD(MOD(999999999999989,MOD(TrialID*2246527+V$11*2399993+0*2100869+0*1918303+'Risk Estimates'!$A27*1624729,7450987)*7580+7560584)*17669,7440893))*1343,4294967296))+0.5)/2^32 -> 0.4324525733 | W27: =IFERROR(IF('Risk Estimates'!$U27<'Risk Estimates'!$D27,_xlfn.LOGNORM.INV('Risk Estimates'!$V27,(LN('Risk Estimates'!$F27)+LN('Risk Estimates'!$E27))/2, (LN('Risk Estimates'!$F27)-LN('Risk Estimates'!$E27))/3.29),0), 0) -> 0 | X27: =IFERROR((1-'Risk Estimates'!$I27)*'Risk Estimates'!$T27, 'Risk Estimates'!$T27) -> 0 | Y27: =IFERROR(IF('Risk Estimates'!$U27<(1-'Risk Estimates'!$I27)*'Risk Estimates'!$D27,_xlfn.LOGNORM.INV('Risk Estimates'!$V27,(LN('Risk Estimates'!$F27)+LN('Risk Estimates'!$E27))/2, (LN('Risk Estimates'!$F27)-LN('Risk Estimates'!$E27))/3.29),0), 0) -> 0 | Z27: =IFERROR(('Risk Estimates'!$T27-'Risk Estimates'!$X27)/'Risk Estimates'!$H27-1, 0) -> 0
A28: =ROW('Risk Estimates'!$B28)-ROW('Risk Estimates'!$B$12) -> 16 | B28: =TRIM(IF(NOT(ISBLANK(K28)),K28,IFERROR(INDEX(_xlfn.TEXTSPLIT(AI_CORRECTED_RISKS,,":::"),'Risk Estimates'!A28),""))) ->  | C28: =IF(NOT(ISBLANK(L28)),L28,IFERROR(INDEX(_xlfn.TEXTSPLIT(AI_CORRECTED_TAGS,,":::"),'Risk Estimates'!A28),"")) ->  | D28: =IF(NOT(ISBLANK(M28)),M28,IFERROR(VALUE(INDEX(_xlfn.TEXTSPLIT(AI_PROB_CORRECTED,,":::"),'Risk Estimates'!A28)),"")) ->  | E28: =IF(NOT(ISBLANK(N28)),N28,IFERROR(INDEX(AI_LB_UB,A28,1),"")) ->  | F28: =IF(NOT(ISBLANK(O28)),O28,IFERROR(INDEX(AI_LB_UB,A28,2),"")) ->  | G28: =IF(NOT(ISBLANK(P28)),P28,IFERROR(INDEX(AI_Controls,A28,2),"")) ->  | H28: =IF(NOT(ISBLANK(Q28)),Q28,IFERROR(INDEX(_xlfn.ANCHORARRAY('AI Steps'!$D$37),A28,1),"")) ->  | I28: =IF(NOT(ISBLANK(R28)),R28,IFERROR(INDEX(_xlfn.ANCHORARRAY('AI Steps'!$E$37),A28,1),"")) ->  | T28: =IFERROR(EXP(((LN('Risk Estimates'!$F28)+LN('Risk Estimates'!$E28))/2)+((LN('Risk Estimates'!$F28)-LN('Risk Estimates'!$E28))/3.28971)^2/2)*'Risk Estimates'!$D28, 0) -> 0 | U28: =((MOD((MOD(MOD(999999999999989,MOD(TrialID*2499997+U$11*1800451+0*2000371+0*1796777+'Risk Estimates'!$A28*2299603,7450589)*4658+7450581)*383,99991)*7440893+MOD(MOD(999999999999989,MOD(TrialID*2246527+U$11*2399993+0*2100869+0*1918303+'Risk Estimates'!$A28*1624729,7450987)*7580+7560584)*17669,7440893))*1343,4294967296))+0.5)/2^32 -> 0.1352275483 | V28: =((MOD((MOD(MOD(999999999999989,MOD(TrialID*2499997+V$11*1800451+0*2000371+0*1796777+'Risk Estimates'!$A28*2299603,7450589)*4658+7450581)*383,99991)*7440893+MOD(MOD(999999999999989,MOD(TrialID*2246527+V$11*2399993+0*2100869+0*1918303+'Risk Estimates'!$A28*1624729,7450987)*7580+7560584)*17669,7440893))*1343,4294967296))+0.5)/2^32 -> 0.3795154915 | W28: =IFERROR(IF('Risk Estimates'!$U28<'Risk Estimates'!$D28,_xlfn.LOGNORM.INV('Risk Estimates'!$V28,(LN('Risk Estimates'!$F28)+LN('Risk Estimates'!$E28))/2, (LN('Risk Estimates'!$F28)-LN('Risk Estimates'!$E28))/3.29),0), 0) -> 0 | X28: =IFERROR((1-'Risk Estimates'!$I28)*'Risk Estimates'!$T28, 'Risk Estimates'!$T28) -> 0 | Y28: =IFERROR(IF('Risk Estimates'!$U28<(1-'Risk Estimates'!$I28)*'Risk Estimates'!$D28,_xlfn.LOGNORM.INV('Risk Estimates'!$V28,(LN('Risk Estimates'!$F28)+LN('Risk Estimates'!$E28))/2, (LN('Risk Estimates'!$F28)-LN('Risk Estimates'!$E28))/3.29),0), 0) -> 0 | Z28: =IFERROR(('Risk Estimates'!$T28-'Risk Estimates'!$X28)/'Risk Estimates'!$H28-1, 0) -> 0
A29: =ROW('Risk Estimates'!$B29)-ROW('Risk Estimates'!$B$12) -> 17 | B29: =TRIM(IF(NOT(ISBLANK(K29)),K29,IFERROR(INDEX(_xlfn.TEXTSPLIT(AI_CORRECTED_RISKS,,":::"),'Risk Estimates'!A29),""))) ->  | C29: =IF(NOT(ISBLANK(L29)),L29,IFERROR(INDEX(_xlfn.TEXTSPLIT(AI_CORRECTED_TAGS,,":::"),'Risk Estimates'!A29),"")) ->  | D29: =IF(NOT(ISBLANK(M29)),M29,IFERROR(VALUE(INDEX(_xlfn.TEXTSPLIT(AI_PROB_CORRECTED,,":::"),'Risk Estimates'!A29)),"")) ->  | E29: =IF(NOT(ISBLANK(N29)),N29,IFERROR(INDEX(AI_LB_UB,A29,1),"")) ->  | F29: =IF(NOT(ISBLANK(O29)),O29,IFERROR(INDEX(AI_LB_UB,A29,2),"")) ->  | G29: =IF(NOT(ISBLANK(P29)),P29,IFERROR(INDEX(AI_Controls,A29,2),"")) ->  | H29: =IF(NOT(ISBLANK(Q29)),Q29,IFERROR(INDEX(_xlfn.ANCHORARRAY('AI Steps'!$D$37),A29,1),"")) ->  | I29: =IF(NOT(ISBLANK(R29)),R29,IFERROR(INDEX(_xlfn.ANCHORARRAY('AI Steps'!$E$37),A29,1),"")) ->  | T29: =IFERROR(EXP(((LN('Risk Estimates'!$F29)+LN('Risk Estimates'!$E29))/2)+((LN('Risk Estimates'!$F29)-LN('Risk Estimates'!$E29))/3.28971)^2/2)*'Risk Estimates'!$D29, 0) -> 0 | U29: =((MOD((MOD(MOD(999999999999989,MOD(TrialID*2499997+U$11*1800451+0*2000371+0*1796777+'Risk Estimates'!$A29*2299603,7450589)*4658+7450581)*383,99991)*7440893+MOD(MOD(999999999999989,MOD(TrialID*2246527+U$11*2399993+0*2100869+0*1918303+'Risk Estimates'!$A29*1624729,7450987)*7580+7560584)*17669,7440893))*1343,4294967296))+0.5)/2^32 -> 0.3589185401 | V29: =((MOD((MOD(MOD(999999999999989,MOD(TrialID*2499997+V$11*1800451+0*2000371+0*1796777+'Risk Estimates'!$A29*2299603,7450589)*4658+7450581)*383,99991)*7440893+MOD(MOD(999999999999989,MOD(TrialID*2246527+V$11*2399993+0*2100869+0*1918303+'Risk Estimates'!$A29*1624729,7450987)*7580+7560584)*17669,7440893))*1343,4294967296))+0.5)/2^32 -> 0.5796801382 | W29: =IFERROR(IF('Risk Estimates'!$U29<'Risk Estimates'!$D29,_xlfn.LOGNORM.INV('Risk Estimates'!$V29,(LN('Risk Estimates'!$F29)+LN('Risk Estimates'!$E29))/2, (LN('Risk Estimates'!$F29)-LN('Risk Estimates'!$E29))/3.29),0), 0) -> 0 | X29: =IFERROR((1-'Risk Estimates'!$I29)*'Risk Estimates'!$T29, 'Risk Estimates'!$T29) -> 0 | Y29: =IFERROR(IF('Risk Estimates'!$U29<(1-'Risk Estimates'!$I29)*'Risk Estimates'!$D29,_xlfn.LOGNORM.INV('Risk Estimates'!$V29,(LN('Risk Estimates'!$F29)+LN('Risk Estimates'!$E29))/2, (LN('Risk Estimates'!$F29)-LN('Risk Estimates'!$E29))/3.29),0), 0) -> 0 | Z29: =IFERROR(('Risk Estimates'!$T29-'Risk Estimates'!$X29)/'Risk Estimates'!$H29-1, 0) -> 0
A30: =ROW('Risk Estimates'!$B30)-ROW('Risk Estimates'!$B$12) -> 18 | B30: =TRIM(IF(NOT(ISBLANK(K30)),K30,IFERROR(INDEX(_xlfn.TEXTSPLIT(AI_CORRECTED_RISKS,,":::"),'Risk Estimates'!A30),""))) ->  | C30: =IF(NOT(ISBLANK(L30)),L30,IFERROR(INDEX(_xlfn.TEXTSPLIT(AI_CORRECTED_TAGS,,":::"),'Risk Estimates'!A30),"")) ->  | D30: =IF(NOT(ISBLANK(M30)),M30,IFERROR(VALUE(INDEX(_xlfn.TEXTSPLIT(AI_PROB_CORRECTED,,":::"),'Risk Estimates'!A30)),"")) ->  | E30: =IF(NOT(ISBLANK(N30)),N30,IFERROR(INDEX(AI_LB_UB,A30,1),"")) ->  | F30: =IF(NOT(ISBLANK(O30)),O30,IFERROR(INDEX(AI_LB_UB,A30,2),"")) ->  | G30: =IF(NOT(ISBLANK(P30)),P30,IFERROR(INDEX(AI_Controls,A30,2),"")) ->  | H30: =IF(NOT(ISBLANK(Q30)),Q30,IFERROR(INDEX(_xlfn.ANCHORARRAY('AI Steps'!$D$37),A30,1),"")) ->  | I30: =IF(NOT(ISBLANK(R30)),R30,IFERROR(INDEX(_xlfn.ANCHORARRAY('AI Steps'!$E$37),A30,1),"")) ->  | T30: =IFERROR(EXP(((LN('Risk Estimates'!$F30)+LN('Risk Estimates'!$E30))/2)+((LN('Risk Estimates'!$F30)-LN('Risk Estimates'!$E30))/3.28971)^2/2)*'Risk Estimates'!$D30, 0) -> 0 | U30: =((MOD((MOD(MOD(999999999999989,MOD(TrialID*2499997+U$11*1800451+0*2000371+0*1796777+'Risk Estimates'!$A30*2299603,7450589)*4658+7450581)*383,99991)*7440893+MOD(MOD(999999999999989,MOD(TrialID*2246527+U$11*2399993+0*2100869+0*1918303+'Risk Estimates'!$A30*1624729,7450987)*7580+7560584)*17669,7440893))*1343,4294967296))+0.5)/2^32 -> 0.1507628943 | V30: =((MOD((MOD(MOD(999999999999989,MOD(TrialID*2499997+V$11*1800451+0*2000371+0*1796777+'Risk Estimates'!$A30*2299603,7450589)*4658+7450581)*383,99991)*7440893+MOD(MOD(999999999999989,MOD(TrialID*2246527+V$11*2399993+0*2100869+0*1918303+'Risk Estimates'!$A30*1624729,7450987)*7580+7560584)*17669,7440893))*1343,4294967296))+0.5)/2^32 -> 0.05832179158 | W30: =IFERROR(IF('Risk Estimates'!$U30<'Risk Estimates'!$D30,_xlfn.LOGNORM.INV('Risk Estimates'!$V30,(LN('Risk Estimates'!$F30)+LN('Risk Estimates'!$E30))/2, (LN('Risk Estimates'!$F30)-LN('Risk Estimates'!$E30))/3.29),0), 0) -> 0 | X30: =IFERROR((1-'Risk Estimates'!$I30)*'Risk Estimates'!$T30, 'Risk Estimates'!$T30) -> 0 | Y30: =IFERROR(IF('Risk Estimates'!$U30<(1-'Risk Estimates'!$I30)*'Risk Estimates'!$D30,_xlfn.LOGNORM.INV('Risk Estimates'!$V30,(LN('Risk Estimates'!$F30)+LN('Risk Estimates'!$E30))/2, (LN('Risk Estimates'!$F30)-LN('Risk Estimates'!$E30))/3.29),0), 0) -> 0 | Z30: =IFERROR(('Risk Estimates'!$T30-'Risk Estimates'!$X30)/'Risk Estimates'!$H30-1, 0) -> 0
A31: =ROW('Risk Estimates'!$B31)-ROW('Risk Estimates'!$B$12) -> 19 | B31: =TRIM(IF(NOT(ISBLANK(K31)),K31,IFERROR(INDEX(_xlfn.TEXTSPLIT(AI_CORRECTED_RISKS,,":::"),'Risk Estimates'!A31),""))) ->  | C31: =IF(NOT(ISBLANK(L31)),L31,IFERROR(INDEX(_xlfn.TEXTSPLIT(AI_CORRECTED_TAGS,,":::"),'Risk Estimates'!A31),"")) ->  | D31: =IF(NOT(ISBLANK(M31)),M31,IFERROR(VALUE(INDEX(_xlfn.TEXTSPLIT(AI_PROB_CORRECTED,,":::"),'Risk Estimates'!A31)),"")) ->  | E31: =IF(NOT(ISBLANK(N31)),N31,IFERROR(INDEX(AI_LB_UB,A31,1),"")) ->  | F31: =IF(NOT(ISBLANK(O31)),O31,IFERROR(INDEX(AI_LB_UB,A31,2),"")) ->  | G31: =IF(NOT(ISBLANK(P31)),P31,IFERROR(INDEX(AI_Controls,A31,2),"")) ->  | H31: =IF(NOT(ISBLANK(Q31)),Q31,IFERROR(INDEX(_xlfn.ANCHORARRAY('AI Steps'!$D$37),A31,1),"")) ->  | I31: =IF(NOT(ISBLANK(R31)),R31,IFERROR(INDEX(_xlfn.ANCHORARRAY('AI Steps'!$E$37),A31,1),"")) ->  | T31: =IFERROR(EXP(((LN('Risk Estimates'!$F31)+LN('Risk Estimates'!$E31))/2)+((LN('Risk Estimates'!$F31)-LN('Risk Estimates'!$E31))/3.28971)^2/2)*'Risk Estimates'!$D31, 0) -> 0 | U31: =((MOD((MOD(MOD(999999999999989,MOD(TrialID*2499997+U$11*1800451+0*2000371+0*1796777+'Risk Estimates'!$A31*2299603,7450589)*4658+7450581)*383,99991)*7440893+MOD(MOD(999999999999989,MOD(TrialID*2246527+U$11*2399993+0*2100869+0*1918303+'Risk Estimates'!$A31*1624729,7450987)*7580+7560584)*17669,7440893))*1343,4294967296))+0.5)/2^32 -> 0.4009845263 | V31: =((MOD((MOD(MOD(999999999999989,MOD(TrialID*2499997+V$11*1800451+0*2000371+0*1796777+'Risk Estimates'!$A31*2299603,7450589)*4658+7450581)*383,99991)*7440893+MOD(MOD(999999999999989,MOD(TrialID*2246527+V$11*2399993+0*2100869+0*1918303+'Risk Estimates'!$A31*1624729,7450987)*7580+7560584)*17669,7440893))*1343,4294967296))+0.5)/2^32 -> 0.04760174954 | W31: =IFERROR(IF('Risk Estimates'!$U31<'Risk Estimates'!$D31,_xlfn.LOGNORM.INV('Risk Estimates'!$V31,(LN('Risk Estimates'!$F31)+LN('Risk Estimates'!$E31))/2, (LN('Risk Estimates'!$F31)-LN('Risk Estimates'!$E31))/3.29),0), 0) -> 0 | X31: =IFERROR((1-'Risk Estimates'!$I31)*'Risk Estimates'!$T31, 'Risk Estimates'!$T31) -> 0 | Y31: =IFERROR(IF('Risk Estimates'!$U31<(1-'Risk Estimates'!$I31)*'Risk Estimates'!$D31,_xlfn.LOGNORM.INV('Risk Estimates'!$V31,(LN('Risk Estimates'!$F31)+LN('Risk Estimates'!$E31))/2, (LN('Risk Estimates'!$F31)-LN('Risk Estimates'!$E31))/3.29),0), 0) -> 0 | Z31: =IFERROR(('Risk Estimates'!$T31-'Risk Estimates'!$X31)/'Risk Estimates'!$H31-1, 0) -> 0
A32: =ROW('Risk Estimates'!$B32)-ROW('Risk Estimates'!$B$12) -> 20 | B32: =TRIM(IF(NOT(ISBLANK(K32)),K32,IFERROR(INDEX(_xlfn.TEXTSPLIT(AI_CORRECTED_RISKS,,":::"),'Risk Estimates'!A32),""))) ->  | C32: =IF(NOT(ISBLANK(L32)),L32,IFERROR(INDEX(_xlfn.TEXTSPLIT(AI_CORRECTED_TAGS,,":::"),'Risk Estimates'!A32),"")) ->  | D32: =IF(NOT(ISBLANK(M32)),M32,IFERROR(VALUE(INDEX(_xlfn.TEXTSPLIT(AI_PROB_CORRECTED,,":::"),'Risk Estimates'!A32)),"")) ->  | E32: =IF(NOT(ISBLANK(N32)),N32,IFERROR(INDEX(AI_LB_UB,A32,1),"")) ->  | F32: =IF(NOT(ISBLANK(O32)),O32,IFERROR(INDEX(AI_LB_UB,A32,2),"")) ->  | G32: =IF(NOT(ISBLANK(P32)),P32,IFERROR(INDEX(AI_Controls,A32,2),"")) ->  | H32: =IF(NOT(ISBLANK(Q32)),Q32,IFERROR(INDEX(_xlfn.ANCHORARRAY('AI Steps'!$D$37),A32,1),"")) ->  | I32: =IF(NOT(ISBLANK(R32)),R32,IFERROR(INDEX(_xlfn.ANCHORARRAY('AI Steps'!$E$37),A32,1),"")) ->  | T32: =IFERROR(EXP(((LN('Risk Estimates'!$F32)+LN('Risk Estimates'!$E32))/2)+((LN('Risk Estimates'!$F32)-LN('Risk Estimates'!$E32))/3.28971)^2/2)*'Risk Estimates'!$D32, 0) -> 0 | U32: =((MOD((MOD(MOD(999999999999989,MOD(TrialID*2499997+U$11*1800451+0*2000371+0*1796777+'Risk Estimates'!$A32*2299603,7450589)*4658+7450581)*383,99991)*7440893+MOD(MOD(999999999999989,MOD(TrialID*2246527+U$11*2399993+0*2100869+0*1918303+'Risk Estimates'!$A32*1624729,7450987)*7580+7560584)*17669,7440893))*1343,4294967296))+0.5)/2^32 -> 0.03593734291 | V32: =((MOD((MOD(MOD(999999999999989,MOD(TrialID*2499997+V$11*1800451+0*2000371+0*1796777+'Risk Estimates'!$A32*2299603,7450589)*4658+7450581)*383,99991)*7440893+MOD(MOD(999999999999989,MOD(TrialID*2246527+V$11*2399993+0*2100869+0*1918303+'Risk Estimates'!$A32*1624729,7450987)*7580+7560584)*17669,7440893))*1343,4294967296))+0.5)/2^32 -> 0.038718033 | W32: =IFERROR(IF('Risk Estimates'!$U32<'Risk Estimates'!$D32,_xlfn.LOGNORM.INV('Risk Estimates'!$V32,(LN('Risk Estimates'!$F32)+LN('Risk Estimates'!$E32))/2, (LN('Risk Estimates'!$F32)-LN('Risk Estimates'!$E32))/3.29),0), 0) -> 0 | X32: =IFERROR((1-'Risk Estimates'!$I32)*'Risk Estimates'!$T32, 'Risk Estimates'!$T32) -> 0 | Y32: =IFERROR(IF('Risk Estimates'!$U32<(1-'Risk Estimates'!$I32)*'Risk Estimates'!$D32,_xlfn.LOGNORM.INV('Risk Estimates'!$V32,(LN('Risk Estimates'!$F32)+LN('Risk Estimates'!$E32))/2, (LN('Risk Estimates'!$F32)-LN('Risk Estimates'!$E32))/3.29),0), 0) -> 0 | Z32: =IFERROR(('Risk Estimates'!$T32-'Risk Estimates'!$X32)/'Risk Estimates'!$H32-1, 0) -> 0

Sheet Loss Exceedance Curve
A1: One-For-One Substitution Model | M1: Expand for Residual Loss Data Table → | S1: Expand for Residual Losses →
D2: Contact HDR to develop custom quantitative methods for your firm. | H2: Introduction: This tab displays the results of the Monte Carlo simulation. Excel's What-If Data Tables are used to run 1,000 random trials based on the Risk Estimates provided, and a histogram shows how often total losses fall within specified bins. Expand the columns using “+” to display the residual risk curve on the Loss Exceedance Curve chart. Ensure that calculation mode is set to "Partial" (Formulas → Calculation Options) so that results update correctly.
D3: www.hubbardresearch.com
D4: info@hubbardresearch.com
D5: Trial ID: | E5: 465
A6: The loss exceedance curve displays the probability of exceeding a given loss in one year compared to your organization's willingness to accept that magnitude of a loss (your risk tolerance). Below the chart, the user can enter a loss in the gold cell and the probability of exceeding that loss will be shown. | G6: Your organization's risk tolerance can be defined by estimating at least three points on this curve. One way to start with this is to leave the Acceptable Probability Loss Exceeded where it is and adjust the Loss amounts to match your tolerance. Are you willing to accept a 99% chance of losing $1MM or more in a given year? If not, what about $500,000 or more? | L6: This data table calculates the inherent loss that occurs in each trial. A total of 10,000 trials are calculated. Note that these are the losses that occur with no controls present. | O6: This data table calculates the residual loss that occurs in each trial. A total of 10,000 trials are calculated. Note that these are the losses that occur after controls are applied. | R6: This table calculates the probability of inherent and residual (if controls are included) losses in pre-defined intervals (e.g., the probability of a loss between $500,000 and $999,999). These values are used to plot the loss exceedance curve.
A7: Inherent Risk, Residual Risk, and Risk Tolerance | G7: Loss Exceedance Tolerance | L7: Total Simulated Inherent Losses | O7: Total Simulated Residual Losses | R7: Chart Table
A8: Recalculate the workbook to update the curve. Press the F9 key or use "Calculate Now" in the Formulas Ribbon. | H8: Loss | I8: Acceptable Probability Loss Exceeded | L8: Trial | M8: Loss | O8: Trial | P8: Loss | R8: Loss | S8: Inherent: % Loss or Greater | T8: Residual: % Loss or Greater
L9: Current Trial → | M9: =SUBTOTAL(9, 'Risk Estimates'!$W$13:$W$32) -> 0 | O9: Current Trial → | P9: =SUBTOTAL(9, 'Risk Estimates'!$Y$13:$Y$32) -> 0 | R9: 0.0001 | S9: =COUNTIF(M$10:M$1009,">"&R9)/1000 -> 0.764 | T9: =COUNTIF(P$10:P$1009,">"&R9)/1000 -> 0.667
H10: 100000 | I10: 0.99 | L10: 1 | M10: 14376779.28 | O10: 1 | P10: 6394822.947 | R10: =R9+500000 -> 500000.0001 | S10: 0.755 | T10: 0.654
H11: 2000000 | I11: 0.15 | L11: 2 | M11: 7553817.784 | O11: 2 | P11: 7553817.784 | R11: =R10+500000 -> 1000000 | S11: 0.719 | T11: 0.61
H12: 10000000 | I12: 0.02 | L12: 3 | M12: 0 | O12: 3 | P12: 0 | R12: =R11*1.07 -> 1070000 | S12: 0.715 | T12: 0.605
H13: 50000000 | I13: 0.005 | L13: 4 | M13: 14856843.7 | O13: 4 | P13: 14856843.7 | R13: =R12*1.07 -> 1144900 | S13: 0.707 | T13: 0.593
L14: 5 | M14: 24361018.2 | O14: 5 | P14: 24361018.2 | R14: 1225043 | S14: 0.704 | T14: 0.586
L15: 6 | M15: 2004510.46 | O15: 6 | P15: 2004510.46 | R15: 1310796.01 | S15: 0.699 | T15: 0.577
G16: Expected Losses | L16: 7 | M16: 468447.3826 | O16: 7 | P16: 468447.3826 | R16: 1402551.731 | S16: 0.693 | T16: 0.568
G17: Expected Inherent Loss | I17: =AVERAGE(M10:M10009) -> 5660518.287 | L17: 8 | M17: 543198.8436 | O17: 8 | P17: 543198.8436 | R17: 1500730.352 | S17: 0.686 | T17: 0.559
L18: 9 | M18: 12765187 | O18: 9 | P18: 3382986.427 | R18: 1605781.477 | S18: 0.675 | T18: 0.548
G19: Expected Residual Loss | I19: =AVERAGE(P10:P10009) -> 4012962.358 | L19: 10 | M19: 0 | O19: 10 | P19: 0 | R19: 1718186.18 | S19: 0.66 | T19: 0.535
L20: 11 | M20: 21598781.77 | O20: 11 | P20: 1909085.497 | R20: 1838459.213 | S20: 0.648 | T20: 0.524
L21: 12 | M21: 11078737.42 | O21: 12 | P21: 11078737.42 | R21: 1967151.357 | S21: 0.633 | T21: 0.51
L22: 13 | M22: 12795034.12 | O22: 13 | P22: 12795034.12 | R22: 2104851.953 | S22: 0.619 | T22: 0.494
L23: 14 | M23: 7726171.822 | O23: 14 | P23: 805260.6963 | R23: 2252191.589 | S23: 0.611 | T23: 0.482
L24: 15 | M24: 681006.2057 | O24: 15 | P24: 681006.2057 | R24: 2409845 | S24: 0.589 | T24: 0.456
L25: 16 | M25: 7445869.572 | O25: 16 | P25: 7445869.572 | R25: 2578534.15 | S25: 0.574 | T25: 0.441
L26: 17 | M26: 5770626.669 | O26: 17 | P26: 3146980.906 | R26: 2759031.541 | S26: 0.554 | T26: 0.42
A27: The Probability of Inherent Loss Exceeding | D27: 2000000 | E27: ="is " &(1-_xlfn.PERCENTRANK.INC(P10:P10009,D27))*100 &"%" -> is 51.2% | L27: 18 | M27: 2638647.594 | O27: 18 | P27: 2638647.594 | R27: 2952163.749 | S27: 0.545 | T27: 0.41
L28: 19 | M28: 8328844.478 | O28: 19 | P28: 0 | R28: 3158815.211 | S28: 0.533 | T28: 0.394
L29: 20 | M29: 7104040.279 | O29: 20 | P29: 3008142.066 | R29: 3379932.276 | S29: 0.518 | T29: 0.379
L30: 21 | M30: 4187685.163 | O30: 21 | P30: 4187685.163 | R30: 3616527.535 | S30: 0.502 | T30: 0.357
L31: 22 | M31: 0 | O31: 22 | P31: 0 | R31: 3869684.463 | S31: 0.484 | T31: 0.343
L32: 23 | M32: 10821933.53 | O32: 23 | P32: 10821933.53 | R32: 4140562.375 | S32: 0.46 | T32: 0.319
L33: 24 | M33: 16250226.02 | O33: 24 | P33: 16250226.02 | R33: 4430401.742 | S33: 0.439 | T33: 0.302
L34: 25 | M34: 0 | O34: 25 | P34: 0 | R34: 4740529.863 | S34: 0.423 | T34: 0.285
L35: 26 | M35: 24572362.01 | O35: 26 | P35: 8018921.599 | R35: 5072366.954 | S35: 0.4 | T35: 0.268
L36: 27 | M36: 0 | O36: 27 | P36: 0 | R36: 5427432.641 | S36: 0.379 | T36: 0.26
L37: 28 | M37: 16005419.44 | O37: 28 | P37: 6258575.639 | R37: 5807352.926 | S37: 0.357 | T37: 0.247
L38: 29 | M38: 0 | O38: 29 | P38: 0 | R38: 6213867.63 | S38: 0.342 | T38: 0.236
L39: 30 | M39: 8123885.472 | O39: 30 | P39: 8123885.472 | R39: 6648838.364 | S39: 0.327 | T39: 0.225
L40: 31 | M40: 4735414.813 | O40: 31 | P40: 2721675.342 | R40: 7114257.05 | S40: 0.312 | T40: 0.211
L41: 32 | M41: 4547673.811 | O41: 32 | P41: 4547673.811 | R41: 7612255.043 | S41: 0.294 | T41: 0.199
L42: 33 | M42: 991267.0928 | O42: 33 | P42: 991267.0928 | R42: 8145112.896 | S42: 0.276 | T42: 0.188
L43: 34 | M43: 0 | O43: 34 | P43: 0 | R43: 8715270.799 | S43: 0.254 | T43: 0.172
L44: 35 | M44: 12705833.3 | O44: 35 | P44: 12705833.3 | R44: 9325339.755 | S44: 0.24 | T44: 0.157
L45: 36 | M45: 6737077.984 | O45: 36 | P45: 6737077.984 | R45: 9978113.538 | S45: 0.216 | T45: 0.142
L46: 37 | M46: 0 | O46: 37 | P46: 0 | R46: 10676581.49 | S46: 0.187 | T46: 0.118
L47: 38 | M47: 14316799.68 | O47: 38 | P47: 14316799.68 | R47: 11423942.19 | S47: 0.172 | T47: 0.108
L48: 39 | M48: 9054208.103 | O48: 39 | P48: 9054208.103 | R48: 12223618.14 | S48: 0.148 | T48: 0.092
L49: 40 | M49: 3061421.805 | O49: 40 | P49: 3061421.805 | R49: 13079271.41 | S49: 0.124 | T49: 0.072
L50: 41 | M50: 5237884.63 | O50: 41 | P50: 4373644.16 | R50: 13994820.41 | S50: 0.106 | T50: 0.062
L51: 42 | M51: 0 | O51: 42 | P51: 0 | R51: 14974457.84 | S51: 0.086 | T51: 0.046
L52: 43 | M52: 0 | O52: 43 | P52: 0 | R52: 16022669.89 | S52: 0.07 | T52: 0.04
L53: 44 | M53: 1845475.081 | O53: 44 | P53: 0 | R53: 17144256.78 | S53: 0.051 | T53: 0.029
L54: 45 | M54: 11586317.55 | O54: 45 | P54: 11586317.55 | R54: 18344354.76 | S54: 0.045 | T54: 0.024
L55: 46 | M55: 7915375.326 | O55: 46 | P55: 7915375.326 | R55: 19628459.59 | S55: 0.035 | T55: 0.018
L56: 47 | M56: 0 | O56: 47 | P56: 0 | R56: 21002451.76 | S56: 0.025 | T56: 0.01
L57: 48 | M57: 0 | O57: 48 | P57: 0 | R57: 22472623.38 | S57: 0.02 | T57: 0.008
L58: 49 | M58: 0 | O58: 49 | P58: 0 | R58: 24045707.02 | S58: 0.013 | T58: 0.007
L59: 50 | M59: 3496237.927 | O59: 50 | P59: 3496237.927 | R59: 25728906.51 | S59: 0.005 | T59: 0.004
L60: 51 | M60: 1804392.666 | O60: 51 | P60: 0 | R60: 27529929.97 | S60: 0.002 | T60: 0.002
L61: 52 | M61: 0 | O61: 52 | P61: 0 | R61: 29457025.07 | S61: 0.002 | T61: 0.002
L62: 53 | M62: 4073124.625 | O62: 53 | P62: 4073124.625 | R62: 31519016.82 | S62: 0.001 | T62: 0.001
L63: 54 | M63: 4565236.72 | O63: 54 | P63: 4565236.72 | R63: 33725348 | S63: 0.001 | T63: 0
L64: 55 | M64: 3537668.408 | O64: 55 | P64: 2272261.865 | R64: 36086122.36 | S64: 0.001 | T64: 0
L65: 56 | M65: 12336450.81 | O65: 56 | P65: 12336450.81 | R65: 38612150.92 | S65: 0 | T65: 0
L66: 57 | M66: 4173712.863 | O66: 57 | P66: 1224994.254 | R66: 41315001.49 | S66: 0 | T66: 0
L67: 58 | M67: 15343404.59 | O67: 58 | P67: 15343404.59 | R67: 44207051.59 | S67: 0 | T67: 0
L68: 59 | M68: 828557.4288 | O68: 59 | P68: 828557.4288 | R68: 47301545.2 | S68: 0 | T68: 0
L69: 60 | M69: 4263054.407 | O69: 60 | P69: 2392465.128 | R69: 50612653.37 | S69: 0 | T69: 0
L70: 61 | M70: 8775040.545 | O70: 61 | P70: 8775040.545 | R70: 54155539.1 | S70: 0 | T70: 0
L71: 62 | M71: 0 | O71: 62 | P71: 0 | R71: 57946426.84 | S71: 0 | T71: 0
L72: 63 | M72: 0 | O72: 63 | P72: 0 | R72: 62002676.72 | S72: 0 | T72: 0
L73: 64 | M73: 3072291.2 | O73: 64 | P73: 3072291.2 | R73: 66342864.09 | S73: =COUNTIF(M$10:M$1009,">"&R73)/1000 -> 0 | T73: =COUNTIF(P$10:P$1009,">"&R73)/1000 -> 0
L74: 65 | M74: 0 | O74: 65 | P74: 0 | R74: 70986864.58 | S74: 0 | T74: 0
L75: 66 | M75: 4099203.429 | O75: 66 | P75: 631069.404 | R75: 75955945.1 | S75: 0 | T75: 0
L76: 67 | M76: 14967080.76 | O76: 67 | P76: 2073669.724 | R76: 81272861.25 | S76: 0 | T76: 0
L77: 68 | M77: 13548633.26 | O77: 68 | P77: 12778977.8 | R77: =R76*1.07 -> 86961961.54 | S77: 0 | T77: 0
L78: 69 | M78: 5055921.744 | O78: 69 | P78: 5055921.744 | R78: 93049298.85 | S78: 0 | T78: 0
L79: 70 | M79: 3096525.919 | O79: 70 | P79: 3096525.919 | R79: 99562749.77 | S79: 0 | T79: 0
L80: 71 | M80: 10008660.63 | O80: 71 | P80: 6233845.763 | R80: 106532142.3 | S80: 0 | T80: 0
L81: 72 | M81: 15698604.32 | O81: 72 | P81: 6917319.854 | R81: 113989392.2 | S81: 0 | T81: 0
L82: 73 | M82: 5209902.43 | O82: 73 | P82: 0 | R82: 121968649.7 | S82: 0 | T82: 0
L83: 74 | M83: 3894417.827 | O83: 74 | P83: 1969133.371 | R83: 130506455.1 | S83: 0 | T83: 0
L84: 75 | M84: 5728122.935 | O84: 75 | P84: 5728122.935 | R84: 139641907 | S84: 0 | T84: 0
L85: 76 | M85: 0 | O85: 76 | P85: 0 | R85: 149416840.5 | S85: 0 | T85: 0
L86: 77 | M86: 0 | O86: 77 | P86: 0 | R86: 159876019.3 | S86: 0 | T86: 0
L87: 78 | M87: 5066647.846 | O87: 78 | P87: 5066647.846 | R87: 171067340.7 | S87: 0 | T87: 0
L88: 79 | M88: 2156167.083 | O88: 79 | P88: 2156167.083 | R88: 183042054.5 | S88: 0 | T88: 0
L89: 80 | M89: 9667038.775 | O89: 80 | P89: 7029989.401 | R89: 195854998.3 | S89: 0 | T89: 0
L90: 81 | M90: 0 | O90: 81 | P90: 0 | R90: 209564848.2 | S90: 0 | T90: 0
L91: 82 | M91: 0 | O91: 82 | P91: 0 | R91: 224234387.6 | S91: 0 | T91: 0
L92: 83 | M92: 620354.3551 | O92: 83 | P92: 620354.3551 | R92: 239930794.7 | S92: 0 | T92: 0
L93: 84 | M93: 5522145.366 | O93: 84 | P93: 5522145.366 | R93: 256725950.4 | S93: 0 | T93: 0
L94: 85 | M94: 0 | O94: 85 | P94: 0 | R94: 274696766.9 | S94: 0 | T94: 0
L95: 86 | M95: 1744200.893 | O95: 86 | P95: 287471.3505 | R95: 293925540.6 | S95: 0 | T95: 0
L96: 87 | M96: 15920868.92 | O96: 87 | P96: 9712336.805 | R96: 314500328.4 | S96: 0 | T96: 0
L97: 88 | M97: 16629120.53 | O97: 88 | P97: 16629120.53 | R97: 336515351.4 | S97: 0 | T97: 0
L98: 89 | M98: 0 | O98: 89 | P98: 0 | R98: 360071426 | S98: 0 | T98: 0
L99: 90 | M99: 1712824.735 | O99: 90 | P99: 1712824.735 | R99: 385276425.8 | S99: 0 | T99: 0
L100: 91 | M100: 7067528.257 | O100: 91 | P100: 0 | R100: 412245775.6 | S100: 0 | T100: 0
L101: 92 | M101: 6548845.895 | O101: 92 | P101: 0 | R101: 441102979.9 | S101: 0 | T101: 0
L102: 93 | M102: 0 | O102: 93 | P102: 0 | R102: 471980188.5 | S102: 0 | T102: 0
L103: 94 | M103: 21188749.87 | O103: 94 | P103: 16442240.38 | R103: 505018801.7 | S103: 0 | T103: 0
L104: 95 | M104: 3776386.641 | O104: 95 | P104: 3776386.641 | R104: 540370117.8 | S104: 0 | T104: 0
L105: 96 | M105: 10541844.41 | O105: 96 | P105: 10541844.41 | R105: 578196026.1 | S105: 0 | T105: 0
L106: 97 | M106: 2443287.288 | O106: 97 | P106: 2443287.288 | R106: 618669747.9 | S106: 0 | T106: 0
L107: 98 | M107: 4898051.983 | O107: 98 | P107: 3384569.159 | R107: 661976630.3 | S107: 0 | T107: 0
L108: 99 | M108: 15256265.78 | O108: 99 | P108: 0 | R108: 708314994.4 | S108: 0 | T108: 0
L109: 100 | M109: 0 | O109: 100 | P109: 0 | R109: 757897044 | S109: 0 | T109: 0
L110: 101 | M110: 6818509.033 | O110: 101 | P110: 6818509.033 | R110: 810949837.1 | S110: 0 | T110: 0
L111: 102 | M111: 8640949.17 | O111: 102 | P111: 3560028.774 | R111: 867716325.7 | S111: 0 | T111: 0
L112: 103 | M112: 0 | O112: 103 | P112: 0 | R112: 928456468.4 | S112: 0 | T112: 0
L113: 104 | M113: 684250.3833 | O113: 104 | P113: 684250.3833 | R113: 993448421.2 | S113: 0 | T113: 0
L114: 105 | M114: 1798518.462 | O114: 105 | P114: 1798518.462 | R114: 1062989811 | S114: 0 | T114: 0
L115: 106 | M115: 10350150.23 | O115: 106 | P115: 10350150.23 | R115: 1137399097 | S115: 0 | T115: 0
L116: 107 | M116: 23993115.66 | O116: 107 | P116: 14295287.34 | R116: 1217017034 | S116: 0 | T116: 0
L117: 108 | M117: 17614024.76 | O117: 108 | P117: 0 | R117: 1302208227 | S117: 0 | T117: 0
L118: 109 | M118: 8983563.103 | O118: 109 | P118: 8983563.103 | R118: 1393362803 | S118: 0 | T118: 0
L119: 110 | M119: 7022184.284 | O119: 110 | P119: 5852109.095 | R119: 1490898199 | S119: 0 | T119: 0
L120: 111 | M120: 8405594.36 | O120: 111 | P120: 8405594.36 | R120: 1595261073 | S120: 0 | T120: 0
L121: 112 | M121: 4244971.504 | O121: 112 | P121: 1931306.185 | R121: 1706929348 | S121: 0 | T121: 0
L122: 113 | M122: 0 | O122: 113 | P122: 0 | R122: 1826414402 | S122: 0 | T122: 0
L123: 114 | M123: 7152963.125 | O123: 114 | P123: 7152963.125 | R123: 1954263410 | S123: 0 | T123: 0
L124: 115 | M124: 0 | O124: 115 | P124: 0 | R124: 2091061849 | S124: 0 | T124: 0
L125: 116 | M125: 7213333.856 | O125: 116 | P125: 7213333.856 | R125: 2237436178 | S125: 0 | T125: 0
L126: 117 | M126: 12128049.3 | O126: 117 | P126: 12128049.3 | R126: 2394056711 | S126: 0 | T126: 0
L127: 118 | M127: 15296098.14 | O127: 118 | P127: 10830067.38 | R127: 2561640681 | S127: 0 | T127: 0
L128: 119 | M128: 7249771.966 | O128: 119 | P128: 7249771.966 | R128: 2740955528 | S128: 0 | T128: 0
L129: 120 | M129: 11921929.89 | O129: 120 | P129: 8914477.049 | R129: 2932822415 | S129: 0 | T129: 0
L130: 121 | M130: 0 | O130: 121 | P130: 0
L131: 122 | M131: 0 | O131: 122 | P131: 0
L132: 123 | M132: 10396975.7 | O132: 123 | P132: 0
L133: 124 | M133: 13469588.48 | O133: 124 | P133: 12402281.73
L134: 125 | M134: 4075737.256 | O134: 125 | P134: 4075737.256
L135: 126 | M135: 488112.81 | O135: 126 | P135: 488112.81
L136: 127 | M136: 2092260.239 | O136: 127 | P136: 2092260.239
L137: 128 | M137: 2351957.371 | O137: 128 | P137: 2351957.371
L138: 129 | M138: 0 | O138: 129 | P138: 0
L139: 130 | M139: 2487793.959 | O139: 130 | P139: 0
L140: 131 | M140: 4124528.232 | O140: 131 | P140: 4124528.232
L141: 132 | M141: 3807691.22 | O141: 132 | P141: 1293523.398
L142: 133 | M142: 0 | O142: 133 | P142: 0
L143: 134 | M143: 13107255.82 | O143: 134 | P143: 13107255.82
L144: 135 | M144: 17991819.87 | O144: 135 | P144: 17991819.87
L145: 136 | M145: 2290881.533 | O145: 136 | P145: 0
L146: 137 | M146: 5055370.131 | O146: 137 | P146: 5055370.131
L147: 138 | M147: 6468056.59 | O147: 138 | P147: 6468056.59
L148: 139 | M148: 13864315.09 | O148: 139 | P148: 8243752.056
L149: 140 | M149: 10658721.96 | O149: 140 | P149: 1805782.255
L150: 141 | M150: 14325803.89 | O150: 141 | P150: 14325803.89
L151: 142 | M151: 5168461.214 | O151: 142 | P151: 0
L152: 143 | M152: 4909434.042 | O152: 143 | P152: 4909434.042
L153: 144 | M153: 9528332.553 | O153: 144 | P153: 9528332.553
L154: 145 | M154: 2613193.645 | O154: 145 | P154: 2613193.645
L155: 146 | M155: 2391559.384 | O155: 146 | P155: 2391559.384
L156: 147 | M156: 0 | O156: 147 | P156: 0
L157: 148 | M157: 0 | O157: 148 | P157: 0
L158: 149 | M158: 2366365.484 | O158: 149 | P158: 0
L159: 150 | M159: 4157949.244 | O159: 150 | P159: 1036976.727
L160: 151 | M160: 10490074.12 | O160: 151 | P160: 0
L161: 152 | M161: 0 | O161: 152 | P161: 0
L162: 153 | M162: 0 | O162: 153 | P162: 0
L163: 154 | M163: 4007831.724 | O163: 154 | P163: 4007831.724
L164: 155 | M164: 5351442.665 | O164: 155 | P164: 5351442.665
L165: 156 | M165: 0 | O165: 156 | P165: 0
L166: 157 | M166: 16531202.47 | O166: 157 | P166: 2996995.906
L167: 158 | M167: 0 | O167: 158 | P167: 0
L168: 159 | M168: 1627336.823 | O168: 159 | P168: 1627336.823
L169: 160 | M169: 811970.7306 | O169: 160 | P169: 811970.7306
L170: 161 | M170: 4415211.127 | O170: 161 | P170: 4415211.127
L171: 162 | M171: 7320945.278 | O171: 162 | P171: 4264078.975
L172: 163 | M172: 12599987.72 | O172: 163 | P172: 10373078.48
L173: 164 | M173: 2419760.926 | O173: 164 | P173: 2419760.926
L174: 165 | M174: 3746239.699 | O174: 165 | P174: 949211.8162
L175: 166 | M175: 13611939.22 | O175: 166 | P175: 4713295.276
L176: 167 | M176: 11337309.04 | O176: 167 | P176: 0
L177: 168 | M177: 0 | O177: 168 | P177: 0
L178: 169 | M178: 0 | O178: 169 | P178: 0
L179: 170 | M179: 2524035.192 | O179: 170 | P179: 0
L180: 171 | M180: 1803801.584 | O180: 171 | P180: 1803801.584
L181: 172 | M181: 8335286.146 | O181: 172 | P181: 1397168.87
L182: 173 | M182: 0 | O182: 173 | P182: 0
L183: 174 | M183: 0 | O183: 174 | P183: 0
L184: 175 | M184: 961526.8587 | O184: 175 | P184: 961526.8587
L185: 176 | M185: 8105443.721 | O185: 176 | P185: 3998165.618
L186: 177 | M186: 1313209.515 | O186: 177 | P186: 1313209.515
L187: 178 | M187: 1417739.656 | O187: 178 | P187: 1417739.656
L188: 179 | M188: 6646939.56 | O188: 179 | P188: 4760569.527
L189: 180 | M189: 0 | O189: 180 | P189: 0
L190: 181 | M190: 1118219.511 | O190: 181 | P190: 1118219.511
L191: 182 | M191: 0 | O191: 182 | P191: 0
L192: 183 | M192: 5269948.332 | O192: 183 | P192: 5269948.332
L193: 184 | M193: 9905854.707 | O193: 184 | P193: 9905854.707
L194: 185 | M194: 24990137.22 | O194: 185 | P194: 7485246.292
L195: 186 | M195: 19691107.05 | O195: 186 | P195: 4206227.719
L196: 187 | M196: 0 | O196: 187 | P196: 0
L197: 188 | M197: 7061664.564 | O197: 188 | P197: 7061664.564
L198: 189 | M198: 1458683.781 | O198: 189 | P198: 0
L199: 190 | M199: 2338051.416 | O199: 190 | P199: 2338051.416
L200: 191 | M200: 6380420.511 | O200: 191 | P200: 938096.1076
... 4300 more rows
